Cogmind - Beta 16.1 @@@ ROGUE MODE // 2026.04.18 @ 23:02:44 Player: GiggleBox Result: Defending 0bPrime! Performance ------------- Evolutions (8) 4000 Regions Visited (30) 6000 Robots Destroyed (407) 2035 Value Destroyed (17948) 17948 Prototype IDs (134) 2680 Alien Tech Used (5) 1000 Bonus (29196) 29196 TOTAL SCORE: 62859 Bonus ------- High Alert Combat Kills 8020 Follower Combat Kills 2033 Hunted by Unchained 1000 Network Hubs Disabled 400 Registered with UFD 300 Met Optimus in HQ 500 Met Imprinter 300 Met Zhirov 300 Built Enhanced Grunts 300 A7 Reached Mainframe 300 Met R17 at Cetus 500 Met R17 at Research 2000 Met Optimus at Protoforge 1000 Executed Drillbomb Mission 10000 Win 3000 Friendly Fire -757 Cogmind --------- Core Integrity 465/1450 Matter 281/300 Energy 1650/1650 System Corruption 1% Temperature Cool (0) Movement Hovering (44) Location 0bPrime Parts ------- > --- POWER (2) -------- Improved Quantum Reactor Hybrid Graviton Reactor > --- PROPULSION (7) --- Improved Hover Unit Improved Antigrav System Improved Antigrav System Combat Antigrav System Combat Antigrav System Combat Linear Gravjet Combat Linear Gravjet > --- UTILITY (12) ----- Large Storage Unit Experimental Optical Array Advanced Signal Interpreter Experimental Target Analyzer Experimental Core Analyzer Experimental Core Analyzer Experimental Armor Integrity Analyzer Experimental Kinecellerator Advanced Weapon Cycler Makeshift Propulsion Shielding Centrium Light Armor Plating > --- WEAPON (2) ------- Concept XC Strikerail Concept XC Strikerail > --- INVENTORY (15) --- Long-range Tractor Beam Concept XC Strikerail Concept XC Strikerail Concept XC Strikerail Compact Linear Accelerator Peak State ------------ > --- POWER ------------ Quantum Reactor Hybrid Graviton Reactor > --- PROPULSION ------- Antigrav System Improved Antigrav System Improved Antigrav System Antigrav Array Combat Linear Gravjet Combat Linear Gravjet > --- UTILITY ---------- Large Storage Unit Experimental Optical Array Experimental Sensor Array Advanced Signal Interpreter Experimental Target Analyzer Experimental Core Analyzer Experimental Core Analyzer Experimental Armor Integrity Analyzer Experimental Kinecellerator Advanced Weapon Cycler Makeshift Propulsion Shielding Centrium Light Armor Plating > --- WEAPON ----------- Sigix Terminator > --- INVENTORY -------- Micro Antimatter Reactor Combat Antigrav System Combat Antigrav System Precision Matter Filter Long-range Tractor Beam Supercharged TR Concept XC Strikerail Concept XC Strikerail Concept XC Strikerail Concept XC Strikerail Concept XC Strikerail Concept XC Strikerail Concept XC Strikerail Fusion Bomb Launcher Force Lance [Rating: 209] Favorites ----------- Power Light Antimatter Reactor Engine Reinforced Ion Engine Power Core Light Fission Core Reactor Light Antimatter Reactor Propulsion Improved Treads Treads Improved Treads Leg Aluminum Leg Hover Unit Cooled Gravmag System Utility Advanced Targeting Computer Device Experimental Sensor Array Storage Large Storage Unit Processor Advanced Targeting Computer Hackware Advanced Hacking Suite Protection Hardened Medium Armor Plating Weapon Enhanced Autogun Energy Gun EM Pulse Gun Energy Cannon Cooled Plasma Cannon Ballistic Gun Enhanced Autogun Ballistic Cannon Heavy Gauss Cannon Launcher Sigix Terminator Impact Weapon Great Maul Slashing Weapon Makeshift Axe Piercing Weapon Force Lance Special Melee Weapon Improved Datajack Build | -11 -10 -10 -9 -9 -8 -8 -8 -8 -6 -6 -6 -6 -6 -6 -5 -5 -5 -5 -5 -4 -4 -4 -4 -4 -4 -3 -3 -2 -2 -2 ------- Run | Yrd Mat Min Mat Min Mat Sto Rec Scr Fac Was Fac Low Low Zio Pro Fac Upp Upp Zhi Pro Fac Ext Cet Arc Hub Res Tes Res Qua Frg Slots Evolved 16 | . . . 2 . 2 . . . 4 . . . . . . 2 . . . . 2 . . . . 2 . 2 . . Power 1 | . . . . . . . . . 1 . . . . . . . . . . . . . . . . . . . . . Propulsion 5 | . . . 1 . 1 . . . 2 . . . . . . . . . . . . . . . . . . 1 . . Utility 10 | . . . 1 . 1 . . . 1 . . . . . . 2 . . . . 2 . . . . 2 . 1 . . Weapon . | . . . . . . . . . . . . . . . . . . . . . . . . . . . . . . . Parts Attached 216 | . 16 1 14 4 10 11 . 8 15 . 9 . 1 2 . 11 . . 4 3 6 12 5 . 1 18 5 4 5 51 Power 28 | . 1 . 1 . 1 . . 1 2 . 2 . . 1 . . . . . 1 1 5 1 . . 3 . 2 1 5 Engine 9 | . . . 1 . 1 . . 1 2 . 1 . . 1 . . . . . 1 . . . . . . . . . 1 Core 3 | . 1 . . . . . . . . . 1 . . . . . . . . . . 1 . . . . . . . . Reactor 16 | . . . . . . . . . . . . . . . . . . . . . 1 4 1 . . 3 . 2 1 4 Propulsion 55 | . 4 . 2 1 3 2 . 2 7 . 4 . 1 . . 5 . . 3 . . 2 . . . 4 . 1 . 14 Treads 16 | . 4 . 2 1 3 2 . 2 2 . . . . . . . . . . . . . . . . . . . . . Leg . | . . . . . . . . . . . . . . . . . . . . . . . . . . . . . . . Wheel . | . . . . . . . . . . . . . . . . . . . . . . . . . . . . . . . Hover 39 | . . . . . . . . . 5 . 4 . 1 . . 5 . . 3 . . 2 . . . 4 . 1 . 14 Flight . | . . . . . . . . . . . . . . . . . . . . . . . . . . . . . . . Utility 83 | . 3 . 6 3 2 4 . 2 6 . 3 . . 1 . 6 . . 1 . 4 4 1 . . 9 3 1 . 24 Device 34 | . 1 . 2 3 . 2 . . 3 . 2 . . 1 . 1 . . 1 . . 3 . . . 4 2 1 . 8 Storage 6 | . 2 . 1 . . . . . 1 . . . . . . 1 . . . . . . . . . 1 . . . . Processor 16 | . . . . . . 1 . 1 1 . . . . . . 2 . . . . 1 1 . . . 3 . . . 6 Hackware 7 | . . . . . . . . . 1 . . . . . . 2 . . . . 3 . . . . . 1 . . . Protection 20 | . . . 3 . 2 1 . 1 . . 1 . . . . . . . . . . . 1 . . 1 . . . 10 Artifact . | . . . . . . . . . . . . . . . . . . . . . . . . . . . . . . . Weapon 50 | . 8 1 5 . 4 5 . 3 . . . . . . . . . . . 2 1 1 3 . 1 2 2 . 4 8 Energy Gun 2 | . 1 . . . . . . . . . . . . . . . . . . . . . . . . . 1 . . . Energy Cannon 6 | . . . . . . 1 . . . . . . . . . . . . . . . 1 1 . . 2 1 . . . Ballistic Gun 26 | . 4 . 4 . 3 3 . 1 . . . . . . . . . . . . . . 1 . . . . . 3 7 Ballistic Cannon 3 | . . . . . . . . . . . . . . . . . . . . 1 1 . 1 . . . . . . . Launcher 8 | . 3 . 1 . 1 . . . . . . . . . . . . . . 1 . . . . . . . . 1 1 Special Weapon . | . . . . . . . . . . . . . . . . . . . . . . . . . . . . . . . Impact Weapon 1 | . . . . . . 1 . . . . . . . . . . . . . . . . . . . . . . . . Slashing Weapon 1 | . . 1 . . . . . . . . . . . . . . . . . . . . . . . . . . . . Piercing Weapon 1 | . . . . . . . . . . . . . . . . . . . . . . . . . 1 . . . . . Special Melee Weapon 2 | . . . . . . . . 2 . . . . . . . . . . . . . . . . . . . . . . Unidentified Prototypes 27 | . . . 1 1 . 1 . . . . 1 . . 1 . . . . 3 . . . 3 . . 1 4 . 2 9 Parts Lost 34 | . 3 . 2 . . 2 . . . . 1 . . . 1 . . . . . 1 3 . . . 3 1 . . 17 Power 5 | . 1 . . . . . . . . . . . . . . . . . . . . 1 . . . 1 . . . 2 Propulsion 12 | . . . 1 . . . . . . . . . . . 1 . . . . . . 2 . . . 1 . . . 7 Utility 12 | . . . 1 . . 2 . . . . . . . . . . . . . . . . . . . 1 1 . . 7 Weapon 5 | . 2 . . . . . . . . . 1 . . . . . . . . . 1 . . . . . . . . 1 Highest Loss Streak 3 | . 1 . 2 . . 1 . . . . 1 . . . 1 . . . . . 1 1 . . . 3 1 . . 3 To Critical Strikes . | . . . . . . . . . . . . . . . . . . . . . . . . . . . . . . . Average Backups 14 | 6 9 15 19 19 18 18 18 18 10 9 9 9 9 9 8 12 14 14 14 14 13 13 14 15 15 14 14 13 14 12 Power . | 1 . . . 1 1 1 1 . . . . . . . . . . . . . . . 1 1 1 . 2 2 2 . Propulsion 3 | 4 6 6 5 4 3 3 4 4 1 . . 1 1 1 . 2 4 4 3 3 3 3 2 3 3 4 3 3 4 1 Utility 5 | . . 2 6 6 7 8 7 7 6 8 7 7 7 7 7 6 7 7 6 7 5 4 5 5 4 3 5 3 3 3 Weapon 4 | 1 2 5 6 7 7 6 6 5 2 1 1 1 1 1 1 2 3 3 3 3 3 3 4 5 5 5 3 4 3 5 Tool/Special . | . . . . . . . . . . . . . . . . . . . . . . . . . . . . . . . Unused Backups 40 | . 8 . 3 1 2 1 . 1 1 . 1 . . . . . . . . . 1 . 2 1 3 6 . 1 3 5 Power 3 | . 2 . . . . . . . . . . . . . . . . . . . . . . 1 . . . . . . Propulsion 12 | . 4 . . . . . . . . . . . . . . . . . . . . . . . 2 4 . . . 2 Utility 11 | . 1 . 1 1 1 . . 1 . . 1 . . . . . . . . . 1 . 1 . 1 . . 1 . 1 Weapon 12 | . 1 . 2 . 1 1 . . 1 . . . . . . . . . . . . . 1 . . 2 . . 1 2 Tool/Special 2 | . . . . . . . . . . . . . . . . . . . . . . . . . . . . . 2 . Average Slot Usage (%) 97 | . 94 100 99 99 98 99 100 99 85 86 98 100 100 99 100 97 94 94 86 94 92 94 100 100 100 95 95 94 93 95 Engine 4 | . 9 . 1 11 9 9 9 9 7 6 6 6 6 6 6 5 5 5 5 5 2 . . . . . . . . . Core 2 | . 4 14 9 . . . . . . . 4 6 6 6 6 5 5 5 5 5 5 . . . . . . . . . Reactor 3 | . . . . . . . . . . . . . . . . . . . . . 2 9 10 10 10 8 9 8 8 7 Treads 13 | . 25 28 33 33 35 35 36 36 9 . . . . . . . . . . . . . . . . . . . . . Hover 17 | . . . . . . . . . 22 33 39 40 40 40 40 32 29 29 28 29 26 26 31 31 31 24 23 26 26 27 Device 10 | . 6 14 9 11 15 10 9 8 12 6 5 6 6 6 4 10 11 11 10 11 10 9 10 10 10 18 14 16 17 10 Storage 7 | . 17 14 11 11 9 9 9 9 6 6 6 6 6 6 6 5 5 5 5 5 5 5 5 5 5 4 4 4 4 4 Processor 12 | . . . . . . 7 9 9 10 13 13 13 13 13 13 16 17 17 17 17 15 15 15 15 15 17 23 21 21 24 Hackware 3 | . . . . . . . . . . 6 6 6 6 6 6 5 5 5 5 5 11 15 15 15 15 9 9 4 4 . Protection 5 | . . . 11 10 11 8 9 8 1 . . . . . 1 . . . . . 2 . . . . 1 . 3 3 9 Energy Cannon 1 | . . . . . . . 1 . 4 6 6 6 6 5 6 5 5 5 . 2 4 . 3 2 . 3 4 4 2 . Ballistic Gun 8 | . 17 27 21 21 18 15 16 17 3 . . . . . . . . . . . . . . . . . . . 1 6 Impact Weapon 1 | . . . . . . 1 1 . 4 6 6 6 6 6 6 5 5 5 5 5 4 5 . . 2 . . . . . Peak Build Rating 209 | 6 15 17 26 34 33 38 38 42 56 51 70 69 70 70 70 96 96 94 100 101 118 117 120 119 122 146 154 171 182 209 Average Rating 89 | 6 10 15 24 25 31 35 37 37 50 51 66 69 69 69 68 90 94 94 90 100 110 115 118 117 119 141 148 168 175 194 On Entrance 77 | 6 6 15 16 26 25 33 38 37 38 51 51 69 69 70 69 70 94 94 94 100 101 114 115 119 114 122 144 148 171 175 Avg Prop Armor Cover (%) 3 | . . . . . . . . . . . . . . . . . . . . . . . . . . 3 . . . . Naked Turns . | . . . . . . . . . . . . . . . . . . . . . . . . . . . . . . . Heaviest Build 84 | 14 39 32 72 67 73 72 71 65 82 32 48 39 39 44 49 60 51 51 51 56 66 73 69 68 62 75 65 82 83 84 Greatest Support 138 | 20 46 46 69 69 92 89 89 92 138 41 72 68 68 68 72 72 69 69 69 65 80 80 70 70 80 76 86 99 99 105 Greatest Overweight (x) 2 | . . . 1 . . . . . 2 . . . . . . 1 . . . . 1 1 . . . 1 . 1 . 1 Average Overweight (x) . | . . . . . . . . . . . . . . . . . . . . . . . . . . . . . . . Largest Inventory Capacity 20 | 8 15 15 20 20 20 20 20 20 20 10 10 10 10 10 10 15 15 15 15 15 15 15 15 15 15 15 15 15 15 15 Average Capacity 15 | 8 13 15 19 20 20 20 20 20 12 10 10 10 10 10 10 14 15 15 15 15 15 15 15 15 15 15 15 15 15 15 Most Carried 20 | 6 15 15 20 20 20 20 19 20 20 10 10 10 10 10 10 15 15 15 15 15 15 15 15 15 15 15 15 15 15 15 Average Carried 15 | 6 9 14 19 19 19 19 19 19 11 10 9 10 10 10 9 13 15 15 14 15 14 14 14 15 14 14 14 13 14 13 Final Capacity 20 | 8 15 15 20 20 20 20 20 20 10 10 10 10 10 10 10 15 15 15 15 15 15 15 15 15 15 15 15 15 15 15 Final Carried 20 | 6 15 15 20 20 20 19 19 20 10 10 10 10 10 10 9 15 15 15 15 15 13 14 15 15 15 14 15 15 15 5 Class Distribution -------------------- 42% | Mutant 12% | Hacker-Ninja 11% | Scavenger-Scout 7% | Ninja 7% | Scientist-Mutant 4% | Hacker-Mutant 3% | Scavenger-Mutant Dominant Class ---------------- Mutant | -10/Materials Mutant | -10/Mines Mutant | -9/Materials Mutant | -9/Mines Mutant | -8/Materials Mutant | -8/Storage Mutant | -8/Recycling Mutant | -8/Scraptown Derelict-Scout | -6/Factory Derelict-Mutant | -6/Waste Scientist-Mutant | -6/Factory Scientist-Mutant | -6/Lower Caves Scientist-Mutant | -6/Lower Caves Mutant | -6/Zion Mutant | -5/Proximity Caves Ninja | -5/Factory Ninja | -5/Upper Caves Ninja | -5/Upper Caves Ninja | -5/Zhirov Ninja | -4/Proximity Caves Hacker-Ninja | -4/Factory Hacker-Ninja | -4/Extension Hacker-Mutant | -4/Cetus Hacker-Mutant | -4/Archives Hacker-Ninja | -4/Hub_04(d) Hacker-Ninja | -3/Research Hacker-Ninja | -3/Testing Scientist-Ninja | -2/Research Hacker-Scout | -2/Quarantine Scavenger-Scout | -2/Protoforge Resources | -11 -10 -10 -9 -9 -8 -8 -8 -8 -6 -6 -6 -6 -6 -6 -5 -5 -5 -5 -5 -4 -4 -4 -4 -4 -4 -3 -3 -2 -2 -2 ----------- Run | Yrd Mat Min Mat Min Mat Sto Rec Scr Fac Was Fac Low Low Zio Pro Fac Upp Upp Zhi Pro Fac Ext Cet Arc Hub Res Tes Res Qua Frg Matter Collected 13204 | 200 266 59 1189 118 649 923 87 81 374 . 519 115 69 48 25 180 107 68 . 190 286 1164 260 102 . 544 80 . 58 5443 Remotely 261 | . . . . . . 261 . . . . . . . . . . . . . . . . . . . . . . . . Salvage Created 20350 | 95 711 8 1516 173 1091 1325 177 . 334 . 478 . 54 . 58 437 107 33 . 141 105 1691 111 280 . 589 6 63 58 10709 Parts 952 | 4 48 7 106 12 61 75 9 . 12 . 15 . 1 . 4 7 1 . . 6 13 39 3 22 . 29 . 3 5 470 Haulers Intercepted 23 | . 2 . 6 . 4 4 . . . . . . . . . 1 . . . . . 3 . . . 3 . . . . Recyclers Shooed 5 | . 1 . 1 1 . . . . . . 1 . . . . . . . . . . 1 . . . . . . . . Parts Field Recycled . | . . . . . . . . . . . . . . . . . . . . . . . . . . . . . . . Retrieved Matter . | . . . . . . . . . . . . . . . . . . . . . . . . . . . . . . . Parts Self-Destructed 38 | . . . . . . . . . . . . 18 10 . 4 . . . . 6 . . . . . . . . . . Prevented 3 | . . . . . . . . . . . . . 2 . . . 1 . . . . . . . . . . . . . Parts Restored . | . . . . . . . . . . . . . . . . . . . . . . . . . . . . . . . Kills | -11 -10 -10 -9 -9 -8 -8 -8 -8 -6 -6 -6 -6 -6 -6 -5 -5 -5 -5 -5 -4 -4 -4 -4 -4 -4 -3 -3 -2 -2 -2 ------- Run | Yrd Mat Min Mat Min Mat Sto Rec Scr Fac Was Fac Low Low Zio Pro Fac Upp Upp Zhi Pro Fac Ext Cet Arc Hub Res Tes Res Qua Frg Combat Hostiles Destroyed 282 | . 12 3 22 6 18 23 3 . 1 . 4 . 1 . 3 2 . . . 4 6 19 2 2 . 2 1 1 . 147 Melee 5 | . . . . . . . . . . . . . . . . . . . . 1 . 2 . . . . 1 . . 1 Guns 211 | . 11 1 19 3 14 20 3 . 1 . . . . . . . . . . . . . . . . . . . . 139 Cannons 34 | . . . . . . . . . . . 4 . . . 3 2 . . . 2 1 15 2 2 . . . 1 . 2 AOE 30 | . 1 2 3 3 4 3 . . . . . . . . . . . . . 1 5 2 . . . 1 . . . 5 Classes Destroyed 25 | 2 5 . 3 . 1 1 . . . . 1 . . . 1 . . 1 . . . 3 . . . . . . . 7 Worker 13 | . . . 3 . 1 . . . . . 1 . . . . 1 . . . . 3 . . . . 3 . . . 1 Builder 14 | . . . 2 1 2 1 . . 1 . . . . . . 1 . . . . 1 2 . . . 1 . . . 2 Tunneler 6 | 1 . 1 . 1 . . . . . . . . . . . 1 . . . . . . . . . 2 . . . . Hauler 23 | . 2 . 6 . 4 4 . . . . . . . . . 1 . . . . . 3 . . . 3 . . . . Recycler 17 | 1 2 . 4 . . 2 . . 2 . 1 . . . . 1 . . . . . 3 . . . 1 . . . . Minesweeper 1 | . . . . . . . . . . . . . . . . . . 1 . . . . . . . . . . . . Mechanic 20 | . . . . . . . . . . . . . . . . . . . . . . . . . . . . . . 20 Operator 12 | . 1 . . . . . . . 1 . . . . . . 1 . . . . . 1 . 4 . . . . 1 3 Drone 30 | . . . . . . . . . . . . . . . 1 . . . . 2 . . . . . 1 1 . . 25 Watcher 23 | . 3 . 5 . 2 1 . . . . 5 . . . . 2 . . . . . 2 . . . . . . 1 2 Swarmer 46 | . 6 3 8 3 4 3 . . . . 1 . . . 2 . . . . . 5 2 . . . . . . . 9 Saboteur 4 | . . . . . . . . . . . . . . . . . . . . . . . . . . . . . . 4 Grunt 64 | . 6 . 6 3 8 10 . . . . . . 1 . . . . . . 1 . 8 . . . 1 . . . 20 Brawler 14 | . . . . . . . . . . . . . . . . . . . . . . 1 . . . . . . . 13 Duelist 7 | . . . . . . 1 . . . . . . . . . . . . . . . . . . . . . . . 6 Protector 10 | . . . . . . . . . . . . . . . . . . . . . . . . . . . . . . 10 Researcher 1 | . . . . . . . . . . . . . . . . . . . . . . . . . . . . . . 1 Sentry 34 | . . . 8 . 5 9 3 . 1 . 1 . . . . . . . . 1 . 3 . 2 . . . . . 1 Specialist 5 | . . . . . . . . . . . . . . . . . . . . . . 1 . . . . . . . 4 Hunter 14 | . . . . . 1 . . . . . . . . . . . . . . . . 2 . . . . . . . 11 Programmer 23 | . . . . . . . . . . . 2 . . . . 2 . . . . 1 1 . . . . . 1 . 16 Behemoth 1 | . . . . . . . . . . . . . . . . . . . . . . 1 . . . . . . . . Cetus Guard 2 | . . . . . . . . . . . . . . . . . . . . . . . 2 . . . . . . . Hotshot 3 | . . . . . . . . . . . . . . . . . . . . . . . . . . . . . . 3 Immortal 4 | . . . . . . . . . . . . . . . . . . . . . . . . . . . . . . 4 Striker 10 | . . . . . . . . . . . . . . . . . . . . . . . . . . . . . . 10 Executioner 10 | . . . . . . . . . . . . . . . . . . . . . . . . . . . . . . 10 Scrapoid 2 | . . . . . . . . . . . . . . . . . . . . . . . . . . . . . . 2 Best Kill Streak 12 | 2 3 3 5 3 4 8 3 . 3 . 4 . 1 . 3 2 . 1 . 2 5 4 1 4 . 4 1 1 1 12 Combat Bots Only 10 | . 3 3 5 3 4 7 3 . 1 . 1 . 1 . 3 2 . . . 2 4 4 1 2 . 1 1 1 . 10 Max Kills in Single Turn 5 | 1 2 2 3 3 4 2 1 . 1 . 1 . 1 . 1 1 . 1 . 1 5 1 1 1 . 2 1 1 1 3 Gunslinging 1 | . 1 . . . . . . . . . . . . . . . . . . . . . . . . . . . . 1 Exploded 4 | . 1 2 3 3 4 2 . . . . . . . . . . . . . 1 4 1 . . . 1 . . . 2 Melee 1 | . . . . . . . . . . . . . . . . . . . . 1 . 1 . . . . 1 . . 1 Uniques/NPCs Destroyed . | . . . . . . . . . . . . . . . . . . . . . . . . . . . . . . . Combat | -11 -10 -10 -9 -9 -8 -8 -8 -8 -6 -6 -6 -6 -6 -6 -5 -5 -5 -5 -5 -4 -4 -4 -4 -4 -4 -3 -3 -2 -2 -2 -------- Run | Yrd Mat Min Mat Min Mat Sto Rec Scr Fac Was Fac Low Low Zio Pro Fac Upp Upp Zhi Pro Fac Ext Cet Arc Hub Res Tes Res Qua Frg Hostile Shots Fired 915 | . 54 5 87 6 63 136 20 . 29 1 33 . 6 . 13 23 . . . 6 34 51 . 2 12 35 28 12 9 250 Missed 342 | . 18 1 25 4 11 42 7 . 12 1 16 . 3 . 3 7 . . . 1 12 20 . . 8 15 18 4 3 111 Hits 573 | . 36 4 62 2 52 94 13 . 17 . 17 . 3 . 10 16 . . . 5 22 31 . 2 4 20 10 8 6 139 Melee 3 | . . . . . . 2 . . . . . . . . . . . . . . . . . . 1 . . . . . Projectile 570 | . 36 4 62 2 52 92 13 . 17 . 17 . 3 . 10 16 . . . 5 22 31 . 2 3 20 10 8 6 139 AOE 2 | . . . . . . . . . . . . . . . . . . . . . . . . . 1 1 . . . . Critical Strikes 40 | . 2 . 3 . 3 4 2 . . . . . . . . 1 . . . 1 4 4 . . 1 7 . 2 . 6 Actively Blocked 2 | . . . . . . . . . . . . . . . . . . . . . . . . . . . . . . 2 Part Disruptions 1 | . . . . . . . . . . . . . . . . . . . . . . . . . . . . 1 . . Damage Taken 11494 | . 446 54 801 43 775 1430 194 . 136 . 139 . 59 . 172 331 . . . 103 427 824 . 54 115 530 175 269 322 4095 Core 1554 | . 68 . 109 . 24 128 29 . 24 . 14 . . . . 21 . . . . 20 91 . 24 . 44 25 23 72 838 Absorbed by Shields 76 | . . . . . . . . . . . . . . . . . . . . . . 60 . . . . . . . 16 Redirected to Shielding 528 | . . . . . . . . . . . . . . . . . . . . . . . . . . . . . . 528 Regen/Repaired (Parts) 821 | . 145 . . . 87 208 . . . . . . . . . . . . . . 128 . . . . 253 . . . . Core Remaining (%) 79 | 100 . 72 . 72 . . . 67 . . . . . . 95 . . . . 97 . . . . 88 . 94 . . 32 Volleys Fired 1201 | 3 59 4 85 10 60 80 5 . 17 . 18 9 32 . 12 36 12 17 . 38 17 110 12 30 5 34 6 18 17 455 Largest 2 | 2 2 2 2 2 2 2 2 . 2 . 1 1 1 . 1 1 1 1 . 1 2 1 2 2 1 1 1 1 2 2 Hottest 150 | 80 80 46 50 46 50 50 50 . 50 . 35 35 35 . 35 35 35 35 . 51 86 81 102 141 51 113 50 150 88 150 Shots Fired 1920 | 6 112 7 169 19 119 153 10 . 20 . 18 9 32 . 12 36 12 17 . 38 22 110 24 36 5 34 6 18 22 854 Gun 1412 | 6 107 6 168 18 118 147 10 . 6 . . . . . . . . . . . . . . . . . . . 12 814 Cannon 474 | . . . . . . 3 . . 14 . 18 9 32 . 12 36 12 17 . 36 21 107 24 36 5 29 6 18 10 29 Launcher 34 | . 5 1 1 1 1 3 . . . . . . . . . . . . . 2 1 3 . . . 5 . . . 11 Special . | . . . . . . . . . . . . . . . . . . . . . . . . . . . . . . . Kinetic 1516 | . 46 6 168 18 118 147 10 . 6 . . . . . . . . . . 13 10 105 24 11 5 3 . . 12 814 Thermal 302 | . . . . . . 3 . . 14 . 18 9 32 . 12 36 12 17 . 23 11 . . 25 . 26 6 18 10 30 Explosive 33 | . 5 1 1 1 1 3 . . . . . . . . . . . . . 2 1 3 . . . 5 . . . 10 Electromagnetic 69 | 6 61 . . . . . . . . . . . . . . . . . . . . 2 . . . . . . . . Robot Hit Streak 88 | 3 9 9 15 14 14 13 11 . 6 . 14 . 7 . 4 8 . . . 5 4 6 10 11 2 3 . 5 3 88 Robot Miss Streak 6 | 1 6 . 3 1 3 4 . . 1 . 2 . 3 . 2 4 . . . 3 3 4 1 2 2 1 . 1 2 2 Penetration Max 2 | . . . . . . . . . . . . . . . . . . . . 1 . 1 . . . . . . . 2 Secondary Targets 27 | . 2 . 1 . . 7 . . . . . . . . . . . . . . . . . . . . . . . 17 Max Gunslinging Chain 1 | . 1 . 1 . . 1 . . . . . . . . . . . . . . . . . . . . . . . 1 Shots Hit Robots 1296 | 4 59 6 119 14 84 109 9 2 8 . 15 . 9 . 4 20 2 1 . 7 11 86 21 22 2 16 1 8 9 648 Core Hits 692 | 3 32 3 59 7 49 50 6 . 3 . 9 . 2 . 3 5 . . . 5 10 44 7 12 . 18 . 1 3 361 Critical Kills 81 | . . . . . . . . . 2 . . . 1 . . . . . . 2 1 1 1 2 . . . . . 71 Critical Parts Destroyed 77 | . . . . . . . . . . . 1 . . . . 1 . 1 . 2 . 3 2 1 . 1 . . 1 64 Critical Strikes 185 | . 2 . . . . . . . 2 . 1 . 1 . . 1 . 1 . 4 1 13 7 3 1 2 . . 1 145 Meltdown 2 | . . . . . . . . . 1 . . . 1 . . . . . . . . . . . . . . . . . Destroy 160 | . . . . . . . . . 1 . . . . . . . . . . 4 1 . 4 3 1 1 . . 1 144 Blast 11 | . . . . . . . . . . . . . . . . . . . . . . 8 3 . . . . . . . Corrupt 2 | . 2 . . . . . . . . . . . . . . . . . . . . . . . . . . . . . Smash 8 | . . . . . . . . . . . 1 . . . . 1 . 1 . . . 5 . . . . . . . . Impale 2 | . . . . . . . . . . . . . . . . . . . . . . . . . . 1 . . . 1 Melee Attacks 364 | . . 1 7 . 1 13 . 2 19 . 30 6 6 . 2 45 8 9 . 19 18 31 . . 5 54 12 18 16 42 Impact 207 | . . . . . . 13 . . 19 . 30 6 6 . 2 45 8 9 . 19 18 31 . . 1 . . . . . Slashing 9 | . . 1 7 . 1 . . . . . . . . . . . . . . . . . . . . . . . . . Piercing 146 | . . . . . . . . . . . . . . . . . . . . . . . . . 4 54 12 18 16 42 Sneak Attacks 37 | . . . 1 . . 1 . 2 2 . 2 . . . . 5 . 1 . 1 1 11 . . . 6 . 1 . 3 Combat Hostiles 2 | . . . . . . . . . . . . . . . . . . . . 1 . 1 . . . . . . . . Follow-up Attacks . | . . . . . . . . . . . . . . . . . . . . . . . . . . . . . . . Damage Inflicted 49084 | 52 984 259 2321 411 1563 2614 195 . 342 . 584 . 359 . 129 1205 152 109 . 275 1095 4570 612 703 17 1457 61 448 244 28323 Guns 29809 | 52 786 76 1904 226 1325 1962 157 . 86 . . . . . . . . . . . . . . . . . . . 159 23076 Cannons 6897 | . . . . . . . . . 62 . 435 . 359 . 129 546 . . . 127 385 2568 612 703 17 146 . 303 40 465 Explosions 7483 | . 189 165 249 162 194 593 . . . . . . . . . . . . . 82 601 581 . . . 439 . . . 4228 Melee 4647 | . . . 78 . . 59 . . 194 . 149 . . . . 659 152 109 . 66 109 1421 . . . 872 61 145 45 528 Ramming 248 | . 9 18 90 23 44 . 38 . . . . . . . . . . . . . . . . . . . . . . 26 Kinetic 32941 | . 260 76 1904 226 1325 1962 157 . 86 . . . . . . . . . . 94 310 2494 612 153 17 30 . . 159 23076 Thermal 4400 | . 29 . . . . . . . 62 . 435 . 359 . 129 546 . . . 33 75 . . 550 . 116 . 303 40 1723 Explosive 6196 | . 160 165 249 162 194 593 . . . . . . . . . . . . . 82 601 581 . . . 439 . . . 2970 Electromagnetic 652 | 52 526 . . . . . . . . . . . . . . . . . . . . 74 . . . . . . . . Impact 2918 | . . . . . . 59 . . 194 . 149 . . . . 659 152 109 . 66 109 1421 . . . . . . . . Slashing 78 | . . . 78 . . . . . . . . . . . . . . . . . . . . . . . . . . . Piercing 1651 | . . . . . . . . . . . . . . . . . . . . . . . . . . 872 61 145 45 528 Highest Corruption 10 | . . . . . . . . . . . 1 1 1 1 . 1 1 1 1 1 3 3 . . . . . 1 4 10 Average Corruption 3 | . . . . . . . . . . . 1 1 1 1 . 1 1 1 1 1 2 2 . . . . . 1 2 6 Corruption Purged 13 | . . . . . . . . . . . . . . . . . . . . . . 3 . . . . . . . 10 Corruption Blocked . | . . . . . . . . . . . . . . . . . . . . . . . . . . . . . . . Effects 166 | . . . . . . . . . . . 4 1 5 . . 1 5 2 2 3 . 1 . . . . . . 9 133 Message Errors 31 | . . . . . . . . . . . . . . . . . 1 . . . . . . . . . . . 2 28 Matter Fused 32 | . . . . . . . . . . . 1 1 2 . . . 2 1 . . . . . . . . . . 3 22 Heat Flow Errors 23 | . . . . . . . . . . . 2 . 1 . . 1 . . . 1 . . . . . . . . 1 17 Energy Discharges 25 | . . . . . . . . . . . . . . . . . 1 1 1 . . . . . . . . . . 22 Parts Rejected 7 | . . . . . . . . . . . . . 1 . . . . . . 1 . . . . . . . . . 5 Data Loss (minor) 20 | . . . . . . . . . . . 1 . 1 . . . 1 . 1 1 . . . . . . . . 3 12 Data Loss (major) 10 | . . . . . . . . . . . . . . . . . . . . . . 1 . . . . . . . 9 Alerts 5 | . . . . . . . . . . . . . . . . . . . . . . . . . . . . . . 5 Weapon Failures 13 | . . . . . . . . . . . . . . . . . . . . . . . . . . . . . . 13 Overload Shots 4 | . . . . . . . . . . . . . . . . . . . . . . . . . . . . 1 . 3 Overflow Damage 2733 | . . . 14 . 13 29 . . 134 . 109 . . . . 512 52 109 . 42 107 697 . 35 . 111 31 107 . 631 Projectiles 303 | . . . . . . . . . . . . . . . . 38 . . . . . 3 . 35 . . . 51 . 176 Explosions 450 | . . . 14 . 13 . . . . . . . . . . . . . . . 38 73 . . . 11 . . . 301 Melee 1980 | . . . . . . 29 . . 134 . 109 . . . . 474 52 109 . 42 69 621 . . . 100 31 56 . 154 Knockbacks 20 | . . . . . . . . . 1 . 1 . . . . 1 . 1 . . 2 12 1 1 . . . . . . Impact 8 | . . . . . . . . . 1 . 1 . . . . 1 . 1 . . . 4 . . . . . . . . Kinetic 12 | . . . . . . . . . . . . . . . . . . . . . 2 8 1 1 . . . . . . Secondary . | . . . . . . . . . . . . . . . . . . . . . . . . . . . . . . . Self-Inflicted Damage 28 | . 15 . . . . . . . . . . . . . . . . . . . . . . . . . . . . 13 Shots 1 | . 1 . . . . . . . . . . . . . . . . . . . . . . . . . . . . . Rammed 23 | . 3 2 6 3 5 . 3 . . . . . . . . . . . . . . . . . . . . . . 1 Targets Rammed 27 | . 3 3 7 4 6 . 3 . . . . . . . . . . . . . . . . . . . . . . 1 Kicked . | . . . . . . . . . . . . . . . . . . . . . . . . . . . . . . . Crushed 4 | . . 1 1 1 1 . . . . . . . . . . . . . . . . . . . . . . . . . Highest Temperature 264 | 36 186 20 102 21 63 196 16 . . . 264 . 256 . 91 240 132 8 8 91 4 20 48 262 . 96 . 16 197 234 Average Temperature 53 | 22 70 9 22 7 22 57 10 . . . 108 . 108 . 50 60 19 4 6 60 4 11 22 102 . 23 . 8 56 101 Received Heat Transfer 2496 | . 228 . 252 21 360 702 81 . 39 . 6 . 27 . 45 18 . . . 21 75 88 . 9 9 278 . 9 54 174 Effects 3 | . . . . . . . . . . . . . . . . . . . . . . . . 3 . . . . . . Interference 3 | . . . . . . . . . . . . . . . . . . . . . . . . 3 . . . . . . Siege Activations . | . . . . . . . . . . . . . . . . . . . . . . . . . . . . . . . Martial Activations . | . . . . . . . . . . . . . . . . . . . . . . . . . . . . . . . Shielding Activations . | . . . . . . . . . . . . . . . . . . . . . . . . . . . . . . . Robots Disrupted 1 | . . . . . . . . . . . . . . . . . . . . . . . . 1 . . . . . . Combat Hostiles . | . . . . . . . . . . . . . . . . . . . . . . . . . . . . . . . Robots Corrupted 12 | . . . . . . . . . 1 . 1 . . . . 4 1 1 . . . 4 . . . . . . . . Combat Hostiles 1 | . . . . . . . . . . . . . . . . . 1 . . . . . . . . . . . . . Parts Fried 32 | 1 4 . . . . . . . 3 . 3 . . . . 10 . . . . 1 10 . . . . . . . . Impact Corruptions 45 | . . . . . . 1 . . 2 . 3 . . . . 12 3 4 . 1 2 17 . . . . . . . . Robots Melted 3 | . . . . . . . . . 1 . . . 1 . . . . . . . . . . . . 1 . . . . Combat Hostiles 2 | . . . . . . . . . . . . . 1 . . . . . . . . . . . . 1 . . . . Parts Melted 5 | . . . . . . . . . . . 1 . . . . 4 . . . . . . . . . . . . . . Heat Transferred 3315 | . 50 . . . . . . . 100 . 650 . 550 . 200 750 . . . 50 100 . . . . 111 . 222 7 525 Parts Sabotaged . | . . . . . . . . . . . . . . . . . . . . . . . . . . . . . . . Parts Stolen . | . . . . . . . . . . . . . . . . . . . . . . . . . . . . . . . Parts Stripped . | . . . . . . . . . . . . . . . . . . . . . . . . . . . . . . . Power Chain Reactions 1 | . 1 . . . . . . . . . . . . . . . . . . . . . . . . . . . . . Alert | -11 -10 -10 -9 -9 -8 -8 -8 -8 -6 -6 -6 -6 -6 -6 -5 -5 -5 -5 -5 -4 -4 -4 -4 -4 -4 -3 -3 -2 -2 -2 ------- Run | Yrd Mat Min Mat Min Mat Sto Rec Scr Fac Was Fac Low Low Zio Pro Fac Upp Upp Zhi Pro Fac Ext Cet Arc Hub Res Tes Res Qua Frg Maximum Alert Level 5 | . . . . . . 2 1 . . . . . . . . . . . . . 1 3 3 2 1 1 1 1 . 5 Low Security (%) 64 | 100 100 100 100 100 100 49 77 . 100 100 100 . . . . 100 . . . . 29 19 . . 65 36 52 92 100 23 Level 1 11 | . . . . . . 11 22 . . . . . . . . . . . . . 70 44 . 55 34 63 47 7 . 3 Level 2 5 | . . . . . . 38 . . . . . . . . . . . . . . . 12 44 44 . . . . . 4 Level 3 3 | . . . . . . . . . . . . . . . . . . . . . . 23 55 . . . . . . 1 Level 4 . | . . . . . . . . . . . . . . . . . . . . . . . . . . . . . . . Level 5 15 | . . . . . . . . . . . . . . . . . . . . . . . . . . . . . . 67 High Security . | . . . . . . . . . . . . . . . . . . . . . . . . . . . . . . . Max Security . | . . . . . . . . . . . . . . . . . . . . . . . . . . . . . . . Peak Influence 5388 | 10 129 94 178 126 194 488 238 . 62 2 69 . . . . 106 . . . . 302 1074 824 424 340 309 257 215 157 5388 Initial 589 | . . 3 . 67 . 66 173 . . 2 . . . . . 34 . . . . 150 147 589 244 141 168 93 132 56 37 Average 724 | 7 47 10 73 32 56 233 174 . 8 . 18 . . . . 40 . . . . 223 424 704 384 157 224 174 159 113 2718 Influence Increases 15294 | 10 421 97 741 209 572 835 286 . 196 . 347 . 35 . 105 421 10 5 . 95 544 1751 365 250 417 555 264 307 257 6199 Destroy 0b10 Robot/C 5660 | . 240 60 440 120 360 460 60 . 20 . 80 . 20 . 40 40 . . . 40 120 860 160 80 160 20 . 20 . 2260 Destroy 0b10 Robot/NC 865 | 10 40 5 100 10 45 40 . . 20 . 35 . . . 5 40 10 5 . 10 20 55 10 20 5 50 5 . 10 315 Destroy Leader 986 | . 50 10 152 20 102 140 . . 10 . 50 . . . . 16 . . . . 10 94 . . 40 6 . 10 2 274 Allied During Kill 735 | . . . . 4 . . . . . . 1 . . . . . . . . . . 391 157 100 82 . . . . . Trap Triggered on 0b10 10 | . . . . . . . . . . . 10 . . . . . . . . . . . . . . . . . . . Successful Hack 865 | . 34 . 29 . 31 28 16 . 48 . 79 . . . . 26 . . . . 4 37 6 . 9 157 57 72 62 170 Select Force Hacks 260 | . . . . . . . 210 . . . . . . . . . . . . . . . . . 50 . . . . . Disable Machine 750 | . . 15 . 15 15 45 . . . . 15 . . . . 15 . . . . 75 15 . 30 15 . 60 30 120 285 Anti-Garrison Action 150 | . . . . . . . . . . . . . . . . . . . . . . . . . . . . . . 150 Destroy Structure 3123 | . 27 7 20 10 19 32 . . 23 . 32 . . . . 104 . . . . 90 164 32 20 56 202 22 70 48 2145 Advance Influence 150 | . . . . . . . . . . . . . . . . . . . . . 150 . . . . . . . . . Partial Spotted 270 | . . . . . . . . . 15 . 30 . . . . 60 . . . . . 30 . . . 30 15 . . 90 Lose Combat Pursuer 1470 | . 30 . . 30 . 90 . . 60 . 15 . 15 . 60 120 . . . 45 75 105 . . . 90 105 105 15 510 Influence Decreases 9906 | 10 413 105 567 383 414 548 628 103 190 6 332 15 35 . 50 437 49 5 . 95 242 999 807 458 499 710 194 443 291 878 Entered New Map 2284 | . . 5 . 107 . 92 272 103 . 4 . 6 . . . 21 15 . . . . 155 465 368 263 154 74 105 45 30 Time Decay 6707 | 10 383 100 547 276 404 436 356 . 190 2 322 9 35 . 40 416 34 5 . 95 222 534 342 70 58 526 110 238 246 701 Search Patrol Dispatched 100 | . . . . . . . . . . . . . . . . . . . . . . . . . . . . 100 . . Lost Part 307 | . 30 . 20 . . 20 . . . . . . . . 10 . . . . . 10 30 . . . 30 10 . . 147 Lost Ally 380 | . . . . . 10 . . . . . 10 . . . . . . . . . 10 280 . 20 50 . . . . . Purge Threat 128 | . . . . . . . . . . . . . . . . . . . . . . . . . 128 . . . . . Squads Dispatched 84 | . . . 2 . . 4 . . 9 . 5 . 1 . . 11 . . . . 10 5 . . 4 15 3 4 2 9 Investigation 40 | . . . . . . 1 . . 5 . 3 . 1 . . 6 . . . . 8 1 . . 1 10 2 1 . 1 Extermination 16 | . . . . . . . . . 2 . 2 . . . . 3 . . . . 2 . . . . . 1 3 1 2 Reinforcement 23 | . . . 2 . . 1 . . 2 . . . . . . 2 . . . . . 1 . . 3 5 . . 1 6 Assault 5 | . . . . . . 2 . . . . . . . . . . . . . . . 3 . . . . . . . . Garrison . | . . . . . . . . . . . . . . . . . . . . . . . . . . . . . . . Intercept . | . . . . . . . . . . . . . . . . . . . . . . . . . . . . . . . Searches Triggered 1 | . . . . . . . . . . . . . . . . . . . . . . . . . . . . 1 . . Unchained Authorized 1 | . . . . . . . . . . . . . . . . . . . . . . . . . . . . . 1 . Construction Impeded 1 | . . . . . . . . . 1 . . . . . . . . . . . . . . . . . . . . . Haulers Reinforced 2 | . . . . . . . . . . . . . . . . 1 . . . . . . . . . 1 . . . . Active Scanning Responses . | . . . . . . . . . . . . . . . . . . . . . . . . . . . . . . . Cargo Convoy Interrupts . | . . . . . . . . . . . . . . . . . . . . . . . . . . . . . . . Stealth | -11 -10 -10 -9 -9 -8 -8 -8 -8 -6 -6 -6 -6 -6 -6 -5 -5 -5 -5 -5 -4 -4 -4 -4 -4 -4 -3 -3 -2 -2 -2 --------- Run | Yrd Mat Min Mat Min Mat Sto Rec Scr Fac Was Fac Low Low Zio Pro Fac Upp Upp Zhi Pro Fac Ext Cet Arc Hub Res Tes Res Qua Frg Distress Signals 34 | . . . 3 . 1 2 . . . . . . . . 1 1 . . . . 2 . 2 . 3 6 . 2 . 11 Communications Jammed 75 | . . . . . . . . . . . . . . . . 35 . . . 1 6 2 . . 9 . 11 1 . 10 Distress Signals 70 | . . . . . . . . . . . . . . . . 35 . . . . 6 2 . . 9 . 7 1 . 10 Times Spotted 675 | . 20 3 40 4 25 39 3 . 6 6 14 . 5 . 7 20 . . . 6 15 53 9 12 11 13 13 12 6 333 Peak Tracking Total 14 | . 3 3 6 3 4 7 3 . 4 6 3 . 3 . 4 7 . . . 2 8 7 5 1 6 6 8 4 2 14 Tactical Retreats 56 | . 2 . . 1 . 3 . . 1 . 1 . 1 . 1 4 . . . 2 3 4 . . . 3 3 4 1 22 Traps | -11 -10 -10 -9 -9 -8 -8 -8 -8 -6 -6 -6 -6 -6 -6 -5 -5 -5 -5 -5 -4 -4 -4 -4 -4 -4 -3 -3 -2 -2 -2 ------- Run | Yrd Mat Min Mat Min Mat Sto Rec Scr Fac Was Fac Low Low Zio Pro Fac Upp Upp Zhi Pro Fac Ext Cet Arc Hub Res Tes Res Qua Frg Traps Triggered 16 | . . 1 1 . . . . . 1 . . . . . . . . . . . 1 1 . . . 3 . 1 2 5 Indirectly . | . . . . . . . . . . . . . . . . . . . . . . . . . . . . . . . Trap Hack Attempts . | . . . . . . . . . . . . . . . . . . . . . . . . . . . . . . . Triggered . | . . . . . . . . . . . . . . . . . . . . . . . . . . . . . . . Disarmed . | . . . . . . . . . . . . . . . . . . . . . . . . . . . . . . . Reprogrammed . | . . . . . . . . . . . . . . . . . . . . . . . . . . . . . . . Reused 1 | . . . . . . . . . . . 1 . . . . . . . . . . . . . . . . . . . Traps Extracted . | . . . . . . . . . . . . . . . . . . . . . . . . . . . . . . . Installed 1 | . . . . . . . . . . . 1 . . . . . . . . . . . . . . . . . . . Triggered 1 | . . . . . . . . . . . 1 . . . . . . . . . . . . . . . . . . . Most Traps Carried 4 | . . . . 4 4 4 4 4 4 4 4 3 3 3 3 3 . . . . . . . . . . . . . . Machines | -11 -10 -10 -9 -9 -8 -8 -8 -8 -6 -6 -6 -6 -6 -6 -5 -5 -5 -5 -5 -4 -4 -4 -4 -4 -4 -3 -3 -2 -2 -2 ---------- Run | Yrd Mat Min Mat Min Mat Sto Rec Scr Fac Was Fac Low Low Zio Pro Fac Upp Upp Zhi Pro Fac Ext Cet Arc Hub Res Tes Res Qua Frg Machines Disabled 62 | . 1 1 . 1 1 3 . . . . 1 . . . . 1 . . . 1 5 1 . 2 1 . 4 3 8 28 Max in Single Turn 9 | . 1 1 . 1 1 1 . . . . 1 . . . . 1 . . . 1 2 1 . 1 . . 1 1 1 9 Garrison Access 4 | . . . . . . . . . . . 1 . . . . . . . . . . . . . . 1 1 . . 1 Network Hub 2 | . . . . . . . . . . . . . . . . . . . . . . . . . 2 . . . . . Machines Repaired . | . . . . . . . . . . . . . . . . . . . . . . . . . . . . . . . Machines Dismantled . | . . . . . . . . . . . . . . . . . . . . . . . . . . . . . . . Machines Sabotaged 1 | . . . . . . . . . . . . . . . . . . . . . . . . . 1 . . . . . Overloaded Fab Kills . | . . . . . . . . . . . . . . . . . . . . . . . . . . . . . . . Hacking | -11 -10 -10 -9 -9 -8 -8 -8 -8 -6 -6 -6 -6 -6 -6 -5 -5 -5 -5 -5 -4 -4 -4 -4 -4 -4 -3 -3 -2 -2 -2 --------- Run | Yrd Mat Min Mat Min Mat Sto Rec Scr Fac Was Fac Low Low Zio Pro Fac Upp Upp Zhi Pro Fac Ext Cet Arc Hub Res Tes Res Qua Frg Machines Accessed 198 | . 9 1 11 1 9 10 13 1 13 . 17 . 1 . . 19 1 . 4 . 13 16 1 . 2 19 6 8 8 15 Terminals 113 | . 8 . 10 . 7 9 6 . 7 . 8 . 1 . . 8 . . . . 3 15 1 . 2 4 3 5 8 8 Fabricators 13 | . . . . . . . . . 1 . 3 . . . . 1 . . . . 2 . . . . 2 . . . 4 Repair Stations 7 | . 1 . . . 1 1 . . . . . . . . . . . . . . 1 . . . . 3 . . . . Recycling Units 33 | . . . . . . . 7 . 4 . 3 . . . . 6 . . . . 6 1 . . . 4 . 1 . 1 Scanalyzers 17 | . . . 1 . 1 . . . 1 . 1 . . . . 3 . . . . 1 . . . . 4 2 1 . 2 Garrison Access 7 | . . . . . . . . . . . 2 . . . . 1 . . . . . . . . . 2 1 1 . . Total Hacks 534 | . 33 1 39 1 31 33 24 8 29 . 37 . 6 . . 36 1 . 17 . 27 35 2 . 8 48 9 33 28 48 Successful 284 | . 22 1 22 1 20 20 13 8 12 . 21 . 6 . . 14 1 . 17 . 19 17 1 . 5 28 5 8 9 14 Failed 247 | . 10 . 17 . 11 13 11 . 17 . 16 . . . . 21 . . . . 8 18 1 . 3 19 4 25 19 34 Catastrophic 51 | . 1 . 1 . . 2 1 . 2 . 3 . . . . 3 . . . . 2 8 . . . 3 2 6 4 13 Database Lockouts 3 | . 1 . . . . . . . . . . . . . . 1 . . . . . . . . . 1 . . . . Manual 286 | . 26 . 28 . 16 19 23 . 16 . 15 . . . . 25 . . . . 18 21 1 . 5 17 2 18 16 20 Terminals 357 | . 29 . 37 . 27 29 16 . 20 . 21 . 6 . . 16 . . . . 9 34 2 . 8 13 5 27 28 30 Fabricators 33 | . . . . . . . . . 3 . 7 . . . . 1 . . . . 5 . . . . 3 . . . 14 Repair Stations 23 | . 4 . . . 2 4 . . . . . . . . . . . . . . 1 . . . . 12 . . . . Recycling Units 45 | . . . . . . . 8 . 4 . 3 . . . . 11 . . . . 9 1 . . . 5 . 3 . 1 Scanalyzers 39 | . . . 2 . 2 . . . 2 . 3 . . . . 6 . . . . 3 . . . . 13 3 2 . 3 Garrison Access 9 | . . . . . . . . . . . 3 . . . . 2 . . . . . . . . . 2 1 1 . . Terminal Hacks 109 | . 8 1 10 1 6 6 3 8 2 . 6 . 6 . . . 1 . 17 . 4 13 1 . 4 1 1 2 6 2 Record 11 | . . . . . . . . . . . . . 6 . . . . . 5 . . . . . . . . . . . Part Schematic 10 | . . . 1 . . . 1 . . . . . . . . . . . 4 . 1 2 . . . . . . 1 . Robot Schematic 1 | . 1 . . . . . . . . . . . . . . . . . . . . . . . . . . . . . Robot Analysis 16 | . 1 . 2 . . . . 8 . . 1 . . . . . . . 4 . . . . . . . . . . . Prototype ID Bank 18 | . 1 . 3 . 3 2 2 . . . 1 . . . . . . . 4 . . . . . . 1 . . 1 . Open Door 18 | . . 1 . 1 . 3 . . . . . . . . . . 1 . . . 1 8 1 . . . . 1 1 . Level Access Points 2 | . . . . . . . . . . . . . . . . . . . . . . . . . 1 . . . . 1 Branch Access Points 5 | . . . 1 . 1 . . . 1 . 1 . . . . . . . . . . . . . . . . . 1 . Emergency Access Points 1 | . . . . . . . . . . . . . . . . . . . . . . . . . . . . . 1 . Terminal Index 2 | . 1 . . . 1 . . . . . . . . . . . . . . . . . . . . . . . . . Recycling Unit Index 1 | . . . . . . . . . . . . . . . . . . . . . . . . . . . 1 . . . Alert Level 5 | . 1 . 1 . . . . . . . . . . . . . . . . . . 1 . . 1 . . . 1 . Unreport Threat 2 | . . . . . . . . . . . . . . . . . . . . . . . . . 2 . . . . . Locate Traps 3 | . 2 . . . . . . . . . . . . . . . . . . . 1 . . . . . . . . . Assault Status 1 | . . . . . . . . . . . . . . . . . . . . . . 1 . . . . . . . . Recall Assault 1 | . . . . . . . . . . . . . . . . . . . . . . 1 . . . . . . . . Hauler Manifests 3 | . . . 1 . 1 . . . . . 1 . . . . . . . . . . . . . . . . . . . Registered Prototypes 1 | . . . . . . 1 . . . . . . . . . . . . . . . . . . . . . . . . Zone Layout 8 | . 1 . 1 . . . . . 1 . 2 . . . . . . . . . 1 . . . . . . 1 . 1 Fabricator Hacks 15 | . . . . . . . . . 1 . 4 . . . . 1 . . . . 3 . . . . 3 . . . 3 Network Status 4 | . . . . . . . . . . . 1 . . . . 1 . . . . . . . . . 1 . . . 1 Load Schematic 5 | . . . . . . . . . . . . . . . . . . . . . 2 . . . . 1 . . . 2 Build 6 | . . . . . . . . . 1 . 3 . . . . . . . . . 1 . . . . 1 . . . . Repair Station Hacks 16 | . 4 . . . 2 4 . . . . . . . . . . . . . . . . . . . 6 . . . . Scan Component 9 | . 2 . . . 1 2 . . . . . . . . . . . . . . . . . . . 4 . . . . Repair 7 | . 2 . . . 1 2 . . . . . . . . . . . . . . . . . . . 2 . . . . Recycling Unit Hacks . | . . . . . . . . . . . . . . . . . . . . . . . . . . . . . . . Scanalyzer 28 | . . . 2 . 2 . . . 2 . 3 . . . . 4 . . . . 2 . . . . 9 2 2 . . Insert Component 3 | . . . . . . . . . . . . . . . . . . . . . 2 . . . . 1 . . . . Retrieve Study 25 | . . . 2 . 2 . . . 2 . 3 . . . . 4 . . . . . . . . . 8 2 2 . . Garrison Access Hacks 3 | . . . . . . . . . . . 1 . . . . . . . . . . . . . . 1 1 . . . Seal Access 3 | . . . . . . . . . . . 1 . . . . . . . . . . . . . . 1 1 . . . Unauthorized Hacks 113 | . 10 . 10 . 10 10 10 . 7 . 7 . . . . 9 . . . . 10 4 . . 1 8 1 4 3 9 Terminals 77 | . 10 . 10 . 10 10 3 . 3 . 4 . . . . 3 . . . . 2 3 . . 1 3 1 3 3 8 Track 6 | . . . . . . 1 . . . . . . . . . . . . . . . . . . . . . . 1 4 Assimilate 6 | . 1 . . . 1 . . . . . 1 . . . . 1 . . . . . . . . . 1 . . . 1 Botnet 37 | . 3 . 5 . 3 2 2 . 3 . 3 . . . . 2 . . . . 2 2 . . . 2 1 3 2 2 Disrupt 2 | . . . . . . 1 . . . . . . . . . . . . . . . . . . . . . . . 1 Operators 3 | . 1 . . . 1 . . . . . . . . . . . . . . . . 1 . . . . . . . . Skim 22 | . 5 . 5 . 5 6 1 . . . . . . . . . . . . . . . . . . . . . . . Sabotage 1 | . . . . . . . . . . . . . . . . . . . . . . . . . 1 . . . . . Fabricators 1 | . . . . . . . . . . . . . . . . . . . . . 1 . . . . . . . . . Recompile 1 | . . . . . . . . . . . . . . . . . . . . . 1 . . . . . . . . . Repair Stations 2 | . . . . . . . . . . . . . . . . . . . . . 1 . . . . 1 . . . . Patch 2 | . . . . . . . . . . . . . . . . . . . . . 1 . . . . 1 . . . . Recycling Units 33 | . . . . . . . 7 . 4 . 3 . . . . 6 . . . . 6 1 . . . 4 . 1 . 1 Tunnel 7 | . . . . . . . 7 . . . . . . . . . . . . . . . . . . . . . . . Fedlink 26 | . . . . . . . . . 4 . 3 . . . . 6 . . . . 6 1 . . . 4 . 1 . 1 Scanalyzers . | . . . . . . . . . . . . . . . . . . . . . . . . . . . . . . . Garrison Access . | . . . . . . . . . . . . . . . . . . . . . . . . . . . . . . . Data Cores Recovered 3 | . 1 . . . . . . . . . . . . . . . . . . . . . . . . . . . . 2 Used . | . . . . . . . . . . . . . . . . . . . . . . . . . . . . . . . Hacking Detections 125 | . 7 . 10 . 9 9 8 . 9 . 10 . 1 . . 13 . . . . 5 9 1 . 1 8 2 6 3 14 Full Trace Events 5 | . 1 . . . . 1 . . 1 . . . 1 . . . . . . . . . . . . 1 . . . . Feedback Events . | . . . . . . . . . . . . . . . . . . . . . . . . . . . . . . . Feedback Blocked . | . . . . . . . . . . . . . . . . . . . . . . . . . . . . . . . Robot Schematics Acquired 1 | . 1 . . . . . . . . . . . . . . . . . . . . . . . . . . . . . Robots Built 5 | . . . . . . . . . . . 4 . . . . . . . . . 1 . . . . . . . . . Authchips 1 | . . . . . . . . . . . . . . . . . . . . . 1 . . . . . . . . . Time 107 | . . . . . . . . . . . 67 . . . . . . . . . 40 . . . . . . . . . Total Robot Build Rating 17 | . . . . . . . . . . . 16 . . . . . . . . . 1 . . . . . . . . . Part Schematics Acquired 10 | . . . 1 . . . 1 . . . . . . . . . . . 4 . 1 2 . . . . . . 1 . Parts Built 7 | . . . . . . . . . 2 . 4 . . . . . . . . . . . . . . 1 . . . . Authchips . | . . . . . . . . . . . . . . . . . . . . . . . . . . . . . . . Time 450 | . . . . . . . . . 117 . 164 . . . . . . . . . . . . . . 169 . . . . Total Part Build Rating 46 | . . . . . . . . . 14 . 26 . . . . . . . . . . . . . . 6 . . . . Part Studies Acquired 25 | . . . 2 . 2 . . . 2 . 3 . . . . 4 . . . . . . . . . 8 2 2 . . Parts Repaired 7 | . 2 . . . 1 2 . . . . . . . . . . . . . . . . . . . 2 . . . . Time 259 | . 64 . . . 38 64 . . . . . . . . . . . . . . . . . . . 93 . . . . Parts Recycled . | . . . . . . . . . . . . . . . . . . . . . . . . . . . . . . . Recycled Matter . | . . . . . . . . . . . . . . . . . . . . . . . . . . . . . . . Retrieved Matter . | . . . . . . . . . . . . . . . . . . . . . . . . . . . . . . . Retrieved Components . | . . . . . . . . . . . . . . . . . . . . . . . . . . . . . . . Parts Scanalyzed 1 | . . . . . . . . . . . . . . . . . . . . . 1 . . . . . . . . . Part Schematics Acquired . | . . . . . . . . . . . . . . . . . . . . . . . . . . . . . . . Parts Damaged 1 | . . . . . . . . . . . . . . . . . . . . . 1 . . . . . . . . . Bothacking | -11 -10 -10 -9 -9 -8 -8 -8 -8 -6 -6 -6 -6 -6 -6 -5 -5 -5 -5 -5 -4 -4 -4 -4 -4 -4 -3 -3 -2 -2 -2 ------------ Run | Yrd Mat Min Mat Min Mat Sto Rec Scr Fac Was Fac Low Low Zio Pro Fac Upp Upp Zhi Pro Fac Ext Cet Arc Hub Res Tes Res Qua Frg Used RIF Installer . | . . . . . . . . . . . . . . . . . . . . . . . . . . . . . . . Robots Hacked 2 | . . . . . . . . 2 . . . . . . . . . . . . . . . . . . . . . . Non-combat . | . . . . . . . . . . . . . . . . . . . . . . . . . . . . . . . Combat 2 | . . . . . . . . 2 . . . . . . . . . . . . . . . . . . . . . . Robot Hacks Applied 2 | . . . . . . . . 2 . . . . . . . . . . . . . . . . . . . . . . parse_system 2 | . . . . . . . . 2 . . . . . . . . . . . . . . . . . . . . . . Relay Couplers Released 1 | . . . . . . . . . . . . . . . . . . . . . . . . . . . . . . 1 Machine Destruction 1 | . . . . . . . . . . . . . . . . . . . . . . . . . . . . . . 1 Fabnet Peak Effective % . | . . . . . . . . . . . . . . . . . . . . . . . . . . . . . . . Robots Rewired 11 | . . . . . . . . . . . . . . . . . . . . . . 10 . 1 . . . . . . Allies Hacked . | . . . . . . . . . . . . . . . . . . . . . . . . . . . . . . . Hacks Repelled . | . . . . . . . . . . . . . . . . . . . . . . . . . . . . . . . Allies | -11 -10 -10 -9 -9 -8 -8 -8 -8 -6 -6 -6 -6 -6 -6 -5 -5 -5 -5 -5 -4 -4 -4 -4 -4 -4 -3 -3 -2 -2 -2 -------- Run | Yrd Mat Min Mat Min Mat Sto Rec Scr Fac Was Fac Low Low Zio Pro Fac Upp Upp Zhi Pro Fac Ext Cet Arc Hub Res Tes Res Qua Frg Total Allies 35 | . . . . 1 1 . . . . . 5 . . . . . . . . . 1 21 5 1 . . . . . . Largest Group 12 | . . . . 1 1 . . . . . 4 . . . . . . . . . 1 9 12 11 10 . . . . . Highest-Rated Group 890 | . . . . 31 10 . . . . . 48 . . . . . . . . . 14 416 890 786 640 . . . . . Highest-Rated Ally 159 | . . . . 31 10 . . . . . 26 . . . . . . . . . 14 159 159 159 96 . . . . . Initial UFD Resources 129 | . . . . . . . . . 22 40 40 46 46 46 48 48 70 70 70 72 72 94 96 96 96 98 116 119 129 129 Total Orders 3 | . . . . . . . . . . . . . . . . . . . . . 3 . . . . . . . . . FOLLOW 1 | . . . . . . . . . . . . . . . . . . . . . 1 . . . . . . . . . AID 2 | . . . . . . . . . . . . . . . . . . . . . 2 . . . . . . . . . Ally Attacks 331 | . . . . 6 . . . . . . 16 . . . . . . . . . . 171 42 17 79 . . . . . Total Damage 9403 | . . . . 65 . . . . . . 183 . . . . . . . . . . 4630 1399 551 2575 . . . . . Kills 44 | . . . . . . . . . . . . . . . . . . . . . . 24 9 2 9 . . . . . Allies Corrupted . | . . . . . . . . . . . . . . . . . . . . . . . . . . . . . . . Allies Melted 3 | . . . . . . . . . . . . . . . . . . . . . . 1 . . . . . . . 2 Intel | -11 -10 -10 -9 -9 -8 -8 -8 -8 -6 -6 -6 -6 -6 -6 -5 -5 -5 -5 -5 -4 -4 -4 -4 -4 -4 -3 -3 -2 -2 -2 ------- Run | Yrd Mat Min Mat Min Mat Sto Rec Scr Fac Was Fac Low Low Zio Pro Fac Upp Upp Zhi Pro Fac Ext Cet Arc Hub Res Tes Res Qua Frg Active Infowar (turns) 24315 | . 686 891 1852 1187 1513 644 . . 960 41 1173 375 672 456 252 1157 361 398 85 504 471 1506 763 157 158 1475 228 503 533 5314 Optics 13612 | . . . . . . . . . . . . . . . . 1156 361 398 85 504 471 1506 763 157 158 1475 228 503 533 5314 Sensors 14865 | . . . . . . . . . 960 41 999 375 667 456 252 1076 361 398 85 504 471 1109 . . 158 1475 228 503 533 4214 Terrain 3023 | . . . . . . . . . . . . . . . . . . . . . . . . . . 1243 228 497 222 833 Traps 3056 | . . . 72 819 1024 154 . . 743 . 112 . . . . 132 . . . . . . . . . . . . . . Seismic 5882 | . 686 891 1780 368 1513 644 . . . . . . . . . . . . . . . . . . . . . . . . Cloaking 220 | . . . . . . . . . . . 16 . 5 . . 82 . . . . . . . . . 51 4 . . 62 Jamming 8184 | . . . . . . . . . . . 46 . . . . 944 361 398 80 504 471 1437 763 143 158 1473 221 503 533 149 Robot Analysis Total 16 | . 1 . 2 . . . . 8 . . 1 . . . . . . . 4 . . . . . . . . . . . Derelict Logs Recovered 14 | . . 2 . 1 . . . . . . . 1 . 2 2 . 3 2 . 1 . . . . . . . . . . Drone Launches 1 | . . . . . . . . 1 . . . . . . . . . . . . . . . . . . . . . . Drone Recoveries . | . . . . . . . . . . . . . . . . . . . . . . . . . . . . . . . Exploration | -11 -10 -10 -9 -9 -8 -8 -8 -8 -6 -6 -6 -6 -6 -6 -5 -5 -5 -5 -5 -4 -4 -4 -4 -4 -4 -3 -3 -2 -2 -2 ------------- Run | Yrd Mat Min Mat Min Mat Sto Rec Scr Fac Was Fac Low Low Zio Pro Fac Upp Upp Zhi Pro Fac Ext Cet Arc Hub Res Tes Res Qua Frg Turns Passed 29333 | 22 1462 891 2090 1201 1513 1212 805 2450 1022 41 1198 375 672 463 304 1157 361 398 85 504 471 1506 763 157 158 1475 228 503 533 5313 Spaces Moved 28940 | 11 712 512 1036 522 744 515 485 1404 1408 94 1578 518 1012 874 417 1541 611 687 154 743 720 1394 200 86 286 2420 414 832 775 6235 Core . | . . . . . . . . . . . . . . . . . . . . . . . . . . . . . . . Treads 6031 | . 671 512 1036 522 744 515 485 1404 142 . . . . . . . . . . . . . . . . . . . . . Legs 52 | 11 41 . . . . . . . . . . . . . . . . . . . . . . . . . . . . . Wheels . | . . . . . . . . . . . . . . . . . . . . . . . . . . . . . . . Hover 22857 | . . . . . . . . . 1266 94 1578 518 1012 874 417 1541 611 687 154 743 720 1394 200 86 286 2420 414 832 775 6235 Flight . | . . . . . . . . . . . . . . . . . . . . . . . . . . . . . . . Fastest Speed 22 | 120 120 160 160 160 160 162 162 160 44 44 43 52 52 52 52 32 32 49 32 34 22 22 41 41 30 38 30 27 27 27 Average Speed 68 | 120 157 160 163 160 161 162 162 161 57 44 52 52 52 52 52 40 47 49 40 34 33 41 41 41 39 41 39 36 35 43 Slowest Speed 200 | 120 160 160 200 160 162 162 162 162 162 44 56 52 52 52 56 105 49 49 49 34 90 103 41 41 41 109 40 96 36 94 Overloaded Moves 230 | . . . . . . . . . . . . . . . . . . . . . 42 4 . . 33 . 22 4 17 108 Propulsion Burnouts 1 | . . . . . . . . . . . . . . . . . . . . . . . . . . . . . . 1 Robots Hopped 4 | . . . . . . . 3 . . . . . . . . . . . . . . . . . 1 . . . . . Potential Cave-ins 10 | . . . . . . . . . 2 . . . . . 2 . . . . . . . . . . . . . . 6 Cave-ins Triggered . | . . . . . . . . . . . . . . . . . . . . . . . . . . . . . . . Teleports 1 | . . . . . . . . . . . . . . . . . . . . . . . . . . . . . . 1 Exploration Rate (%) 66 | 2 96 99 85 98 52 76 95 90 28 73 39 67 74 85 65 54 74 85 61 88 22 87 73 79 27 69 71 23 72 63 Regions Visited 30 Branch Regions 20 Pre-discovered Areas 21 | . 4 . 2 . . 1 7 . 1 . . . . 1 . . . 1 3 1 . . . . . . . . . . Known Exits Taken 24 | . 1 1 1 1 1 . . . . . 1 1 1 1 1 1 1 1 1 1 1 1 1 1 1 1 1 1 1 . Unknown Exits Taken 4 | 1 . . . . . 1 1 1 . . . . . . . . . . . . . . . . . . . . . . Scrap Searched 27 | . . 1 . 2 . . . 6 . . . 3 1 5 1 . 1 4 . 3 . . . . . . . . . . Spaces Dug 1241 | . . 1 6 10 13 14 . . 25 . 29 8 12 . 5 49 12 11 . 38 21 7 . . 3 68 11 18 12 868 Terrain Destroyed 1754 | . 30 7 18 10 13 42 . . 28 . 32 15 22 . 10 56 18 25 . 66 51 95 1 9 3 107 11 23 17 1045 Melee 261 | . . 1 6 . 1 11 . . 16 . 27 6 6 . 2 38 6 8 . 18 17 5 . . 3 34 5 13 9 29 Projectile 439 | . . . . . . 3 . . 12 . 5 9 16 . 8 18 12 17 . 22 9 48 1 9 . 22 6 10 8 204 AOE 1054 | . 30 6 12 10 12 28 . . . . . . . . . . . . . 26 25 42 . . . 51 . . . 812 Terrain Rammed . | . . . . . . . . . . . . . . . . . . . . . . . . . . . . . . . Walls Destroyed . | . . . . . . . . . . . . . . . . . . . . . . . . . . . . . . . Machines Disabled . | . . . . . . . . . . . . . . . . . . . . . . . . . . . . . . . Actions | -11 -10 -10 -9 -9 -8 -8 -8 -8 -6 -6 -6 -6 -6 -6 -5 -5 -5 -5 -5 -4 -4 -4 -4 -4 -4 -3 -3 -2 -2 -2 --------- Run | Yrd Mat Min Mat Min Mat Sto Rec Scr Fac Was Fac Low Low Zio Pro Fac Upp Upp Zhi Pro Fac Ext Cet Arc Hub Res Tes Res Qua Frg Total 36219 | 13 937 578 1261 865 958 763 493 1594 1573 93 1861 602 1112 881 483 1936 650 712 175 913 887 2141 863 180 317 2760 442 982 982 8212 Wait 4724 | . 120 45 79 313 100 116 2 152 79 . 184 70 58 2 50 266 15 . . 103 108 515 634 47 11 174 . 98 139 1244 Move 28902 | 10 711 511 1035 521 743 514 478 1403 1408 93 1577 517 1011 873 416 1540 610 686 153 742 719 1393 199 85 283 2419 413 831 774 6234 Hop 4 | . . . . . . . 3 . . . . . . . . . . . . . . . . . 1 . . . . . Pick Up 180 | . 13 5 12 2 9 2 . 11 10 . 4 . . . . 13 . . 4 . 4 5 5 2 4 16 1 5 10 43 Fast Attach 82 | . 7 . . 3 1 3 . 2 5 . 5 . 1 2 . 2 . . 5 1 5 5 . . 2 9 . 1 3 20 Attach 72 | . 1 . 4 1 2 2 . 6 9 . . . . . 1 2 . . . . 4 3 . . . 7 . 3 3 24 Detach 28 | . 2 . . . . 1 . 1 5 . . . . . . . . . . . 1 2 . . . 2 . 1 . 13 Swap 310 | . 12 4 24 5 20 26 2 5 5 . 32 . 3 2 2 24 5 . 5 9 8 21 8 4 1 22 10 4 7 40 Drop 220 | . 9 5 8 6 16 6 . 12 16 . 10 . 1 2 . 8 . . 8 1 3 6 5 2 5 23 . 3 13 52 Fire 1201 | 3 59 4 85 10 60 80 5 . 17 . 18 9 32 . 12 36 12 17 . 38 17 110 12 30 5 34 6 18 17 455 Melee 364 | . . 1 7 . 1 13 . 2 19 . 30 6 6 . 2 45 8 9 . 19 18 31 . . 5 54 12 18 16 42 Ram 1 | . . . . . . . . . . . . . . . . . . . . . . . . . . . . . . 1 Kick . | . . . . . . . . . . . . . . . . . . . . . . . . . . . . . . . Crush 26 | . 3 3 7 4 6 . 3 . . . . . . . . . . . . . . . . . . . . . . . Escape Stasis 6 | . . . . . . . . . . . . . . . . . . . . . . . . . . . . . . 6 Rewire 60 | . . . . . . . . . . . . . . . . . . . . . . 50 . 10 . . . . . . Trap 1 | . . . . . . . . . . . 1 . . . . . . . . . . . . . . . . . . . Miscellaneous 38 | . . . . . . . . . . . . . . . . . . . . . . . . . . . . . . 38 Route ------- -11/Scrapyard -10/Materials (discovered 5 exits: *Mat x3 / *Min x2) -10/Mines (discovered 3 exits: *Mat x2 / [*Exi]) -9/Materials (discovered 5 exits: *Mat x3 / *Min x2) -9/Mines (discovered 2 exits: *Mat x2) -8/Materials (discovered 5 exits: *Fac x3 / *Sto x2) -8/Storage (discovered 2 exits: *Fac / *Rec) -8/Recycling (discovered 2 exits: *Fac / *Scr) -8/Scraptown (discovered 2 exits: *Fac x2) -6/Factory (discovered 3 exits: *Fac / Low x2) -6/Waste -6/Factory (discovered 2 exits: *Low x2) -6/Lower Caves (discovered 2 exits: *Low / *Zio) -6/Lower Caves (discovered 2 exits: *Fac / *Zio) -6/Zion -5/Proximity Caves -5/Factory (discovered 5 exits: *Fac x3 / *Upp x2) -5/Upper Caves -5/Upper Caves (discovered 2 exits: *Fac / *Zhi) -5/Zhirov -4/Proximity Caves -4/Factory (discovered 3 exits: *Res x2 / *Ext) -4/Extension (discovered 2 exits: *Res / *Cet) -4/Cetus (discovered 2 exits: *Res / *Arc) -4/Archives (discovered 3 exits: *Res / *Hub x2) -4/Hub_04(d) (discovered 4 exits: *Res x4) -3/Research (discovered 5 exits: *Res x3 / *Tes x2) -3/Testing -2/Research (discovered 2 exits: *Acc / *Qua) -2/Quarantine (discovered 2 exits: [*Sec] / *Frg) -2/Protoforge 0bPrime History --------- Turn | Location | Event 11 | -11/Scrapyard | Discovered new exit (range 3) 23 | -11/Scrapyard | Entered Materials 126 | -10/Materials | Discovered new exit (range 11) 318 | -10/Materials | Build established: Mutant 698 | -10/Materials | Discovered new exit (range 13) 723 | -10/Materials | Discovered new exit (range 6) 963 | -10/Materials | Discovered new exit (range 3) 975 | -10/Materials | Central database locked down 1079 | -10/Materials | Learned location of Subcaves (-10) 1117 | -10/Materials | Loaded intel: 8 terminal locations 1144 | -10/Materials | Learned location of Mines (-10) 1163 | -10/Materials | Learned location of 2 exits from Subcaves 1195 | -10/Materials | Identified exit to Mines 1195 | -10/Materials | Identified exit to Materials 1267 | -10/Materials | Learned location of 2 exits from Subcaves 1347 | -10/Materials | Repaired Imp. Treads 1381 | -10/Materials | Repaired Imp. Treads 1485 | -10/Materials | Entered Mines 1570 | -10/Mines | Learned Materials interactive machine intel 1583 | -10/Mines | A weapon hastily lodged in a ceiling crevice suddenly fell to the ground 1698 | -10/Mines | Learned Materials terminal intel 1986 | -10/Mines | Discovered exit to Materials (range 9) 2132 | -10/Mines | Met a Derelict who couldn't figure out how to use a Trap Extractor 2338 | -10/Mines | Discovered exit to Materials (range 10) 2354 | -10/Mines | Deemed a non-threat by the Exiles lab entrance 2354 | -10/Mines | Discovered new exit (range 5) 2376 | -10/Mines | Entered Materials 2376 | -9/Materials | Evolved 2 slots: Propulsion x1, Utility x1 2377 | -9/Materials | Loaded intel: 18 interactive machine locations 2378 | -9/Materials | Loaded intel: 12 terminal locations 3132 | -9/Materials | Discovered new exit (range 15) 3302 | -9/Materials | Discovered new exit (range 7) 3861 | -9/Materials | Discovered new exit (range 16) 4214 | -9/Materials | Discovered new exit (range 8) 4353 | -9/Materials | Learned location of Recycling (-8) 4353 | -9/Materials | Identified exit to Mines 4404 | -9/Materials | Identified exit to Materials 4414 | -9/Materials | Learned 4 Recycling zone layouts 4416 | -9/Materials | Learned location of 1 exit from Storage 4466 | -9/Materials | Entered Mines 4469 | -9/Mines | Received a Mining Laser from a helpful Derelict 4487 | -9/Mines | Discovered exit to Materials (range 15) 4492 | -9/Mines | Learned location of 1 exit from Materials 4600 | -9/Mines | Found a hidden stash of uninstalled traps 4791 | -9/Mines | Discovered exit to Materials (range 12) 5227 | -9/Mines | Found the Drone Emporium 5239 | -9/Mines | Found Prototype Device 5239 | -9/Mines | Identified Decoy Drone Bay 5667 | -9/Mines | Entered Materials 5667 | -8/Materials | Evolved 2 slots: Propulsion x1, Utility x1 5668 | -8/Materials | Identified exit to Storage 5669 | -8/Materials | Identified exit to Factory 6174 | -8/Materials | Learned location of 1 exit from Lower Caves 6246 | -8/Materials | Learned 2 Storage zone layouts 6268 | -8/Materials | Learned Storage trap positions 6277 | -8/Materials | Repaired Hrd. Medium Armor Plating 6282 | -8/Materials | Learned Factory trap positions 6286 | -8/Materials | Learned Storage garrison access intel 6322 | -8/Materials | Learned Storage machine intel 7180 | -8/Materials | Entered Storage 7183 | -8/Storage | Loaded intel: 23 trap records 7184 | -8/Storage | Loaded intel: 44 machine locations 7259 | -8/Storage | Learned location of Armory (-4) 7488 | -8/Storage | Repaired Imp. Treads+ 7521 | -8/Storage | Repaired Imp. Treads+ 7875 | -8/Storage | Destroyed 7 combat bots 7980 | -8/Storage | First assault squad dispatched 8386 | -8/Storage | Used back door to open Recycling access 8386 | -8/Storage | Discovered new exit (range 5) 8392 | -8/Storage | Entered Recycling 8393 | -8/Recycling | Met a Zionite searching for Scraptown 8860 | -8/Recycling | Discovered new exit (range 16) 9037 | -8/Recycling | Watched by a mysterious "MATRIX" hacker. 9160 | -8/Recycling | Scanned before Scraplab entrance 9183 | -8/Recycling | Entered Scraplab 9196 | -8/Recycling | Discovered new exit (range 2) 9197 | -8/Recycling | Entered Scraptown 9587 | -8/Scraptown | Discovered new exit (range 13) 9766 | -8/Scraptown | Visited Symbiants 9782 | -8/Scraptown | Visited IN-MT5's Study 9806 | -8/Scraptown | Visited Scrapoid Research Area 10066 | -8/Scraptown | Visited Supply Room 10100 | -8/Scraptown | Visited CPS Storage 10150 | -8/Scraptown | Visited TADAMA 10194 | -8/Scraptown | Visited Shadow of the Wyrm 10239 | -8/Scraptown | Visited UFD Registry 10239 | -8/Scraptown | Registered with UFD as "Dualbucket" 10300 | -8/Scraptown | Visited LU-1G1's Boring Crew 10328 | -8/Scraptown | Visited Junk Cannon Lab 10369 | -8/Scraptown | Visited Infowarlord's Domain 10391 | -8/Scraptown | Visited Scrap Suit Storage 10428 | -8/Scraptown | Visited Junk Repository 10467 | -8/Scraptown | Visited Derelict Rescue Squad 10490 | -8/Scraptown | Visited Scrapoid Pod Storage 10509 | -8/Scraptown | Visited Curators Association 10566 | -8/Scraptown | Visited DA-N13 Charitable Foundation 10597 | -8/Scraptown | Visited Analyses Database 10647 | -8/Scraptown | Found DCF Scrap (26 items) 10888 | -8/Scraptown | Found Exp. Sensor Array 10986 | -8/Scraptown | Found DRS Beacon 11011 | -8/Scraptown | Found DRS Beacon 11566 | -8/Scraptown | Met Optimus 11566 | -8/Scraptown | Accepted into 0bPrime 11643 | -8/Scraptown | Discovered new exit (range 3) 11647 | -8/Scraptown | Entered Factory 11647 | -6/Factory | Evolved 4 slots: Power x1, Propulsion x2, Utility x1 11648 | -6/Factory | Loaded intel: 97 trap records 11834 | -6/Factory | Discovered new exit (range 12) 11996 | -6/Factory | Loaded intel: 8 recycling unit locations 12013 | -6/Factory | Learned location of Protoforge (-2) 12186 | -6/Factory | Identified exit to Lower Caves 12260 | -6/Factory | Fabricated Imp. Cloaking Device? 12294 | -6/Factory | Build established: Derelict-Scout 12669 | -6/Factory | Sucked down chute 12669 | -6/Factory | Entered Waste 12674 | -6/Waste | Spotted C-40 Crusher 12677 | -6/Waste | Spotted C-40 Crusher 12693 | -6/Waste | Spotted C-40 Crusher 12695 | -6/Waste | Spotted C-40 Crusher 12699 | -6/Waste | Spotted C-40 Crusher 12700 | -6/Waste | Spotted C-40 Crusher 12706 | -6/Waste | Discovered new exit (range 12) 12710 | -6/Waste | Identified exit to Factory 12710 | -6/Waste | Entered Factory 12895 | -6/Factory | Fabricated S-27 Virus? 12927 | -6/Factory | Found Powered Armor 13001 | -6/Factory | Lost 3 allies 13087 | -6/Factory | Loaded intel: 8 recycling unit locations 13155 | -6/Factory | Build established: Scientist-Mutant 13298 | -6/Factory | Fabricated Enh. Gauss Cannon (x2) 13515 | -6/Factory | Fabricated Adv. Transmission Jammer (x2) 13883 | -6/Factory | Noticed a derelict Sapper rigging charges 13908 | -6/Factory | Entered Lower Caves 13909 | -6/Lower Caves | Identified exit to Lower Caves 14209 | -6/Lower Caves | Learned location of 1 exit from Factory 14229 | -6/Lower Caves | Encountered a Warlord checkpoint 14240 | -6/Lower Caves | A Derelict revealed a hidden shortcut to a safe place 14244 | -6/Lower Caves | Identified exit to Zion 14283 | -6/Lower Caves | Entered another Lower Caves area 14333 | -6/Lower Caves | Encountered a Warlord checkpoint 14436 | -6/Lower Caves | Discovered new exit (range 11) 14440 | -6/Lower Caves | Identified exit to Factory 14859 | -6/Lower Caves | Learned Extension security intel 14859 | -6/Lower Caves | Learned Research stockpile data 14859 | -6/Lower Caves | Learned Factory stockpile data 14859 | -6/Lower Caves | Learned Armory trap positions 14859 | -6/Lower Caves | Learned 6 Proximity Caves zone layouts 14914 | -6/Lower Caves | Discovered exit to Zion (range 5) 14955 | -6/Lower Caves | Entered Zion 14983 | -6/Zion | Learned Factory garrison access intel 14986 | -6/Zion | System corruption cleaned by Quarantine Array 15002 | -6/Zion | Discovered new exit (range 16) 15122 | -6/Zion | Found Prototype Device 15122 | -6/Zion | Identified Mobile Refinery Mk. CCLXVII 15265 | -6/Zion | Turned away by Imprinter 15378 | -6/Zion | Build established: Mutant 15418 | -6/Zion | Identified exit to Proximity Caves 15418 | -6/Zion | Entered Proximity Caves 15477 | -5/Proximity Caves | Learned 8 Factory zone layouts 15722 | -5/Proximity Caves | Entered Factory 15722 | -5/Factory | Evolved 2 slots: Utility x2 15723 | -5/Factory | Identified exit to Upper Caves 15724 | -5/Factory | Identified exit to Factory 15727 | -5/Factory | Loaded intel: 4 garrison access locations 16003 | -5/Factory | Loaded intel: 8 recycling unit locations 16300 | -5/Factory | Build established: Ninja 16403 | -5/Factory | Spotted B-75 Beast 16423 | -5/Factory | Discovered exit to Factory (range 9) 16428 | -5/Factory | Central database locked down 16879 | -5/Factory | Entered Upper Caves 17030 | -5/Upper Caves | Learned 4 Factory zone layouts 17057 | -5/Upper Caves | Learned Factory non-interactive machine intel 17063 | -5/Upper Caves | Identified exit to Upper Caves 17217 | -5/Upper Caves | Spotted B-75 Beast 17240 | -5/Upper Caves | Entered another Upper Caves area 17255 | -5/Upper Caves | Entered a destroyed Warlord outpost 17262 | -5/Upper Caves | Discovered exit to Factory (range 10) 17266 | -5/Upper Caves | Learned location of 1 exit from Factory 17604 | -5/Upper Caves | Discovered new exit (range 5) 17621 | -5/Upper Caves | Identified exit to Zhirov 17638 | -5/Upper Caves | Entered Zhirov 17639 | -5/Zhirov | Discovered new exit (range 3) 17648 | -5/Zhirov | Met Zhirov 17657 | -5/Zhirov | Learned location of Testing (-3) 17662 | -5/Zhirov | Zhirov requested help retrieving the SGEMP Prototype 17670 | -5/Zhirov | Found Alien Artifact 17670 | -5/Zhirov | Identified Integrated Dissipator 17670 | -5/Zhirov | Installed Integrated Dissipator, increased core heat dissipation (+20) 17681 | -5/Zhirov | Found Alien Artifact 17723 | -5/Zhirov | Identified exit to Proximity Caves 17723 | -5/Zhirov | Entered Proximity Caves 17732 | -4/Proximity Caves | Spotter reported a threat 18159 | -4/Proximity Caves | Attracted the attention of an 0b10 checkpoint 18210 | -4/Proximity Caves | Discovered exit to Factory (range 10) 18227 | -4/Proximity Caves | Entered Factory 18227 | -4/Factory | Evolved 2 slots: Utility x2 18228 | -4/Factory | Identified exit to Research 18230 | -4/Factory | Loaded intel: 254 non-interactive machine locations 18288 | -4/Factory | Loaded intel: 8 recycling unit locations 18334 | -4/Factory | Fabricated M-13 Machinist? 18503 | -4/Factory | Identified Transdimensional Reconstructor 18526 | -4/Factory | Discovered exit to Research (range 22) 18603 | -4/Factory | Build established: Hacker-Ninja 18697 | -4/Factory | Discovered new exit (range 6) 18698 | -4/Factory | Identified exit to Extension 18698 | -4/Factory | Entered Extension 18729 | -4/Extension | Rescued a captive Derelict 18940 | -4/Extension | Rescued a captive Derelict 18940 | -4/Extension | Rescued a captive Derelict 19513 | -4/Extension | Spotted B-86 Titan 19543 | -4/Extension | Destroyed B-86 Titan 19557 | -4/Extension | Spotted B-86 Titan 19589 | -4/Extension | Allies destroyed B-86 Titan 19598 | -4/Extension | Disrupted transfer network 19617 | -4/Extension | Lost 3 allies 19698 | -4/Extension | First assault squad dispatched 19705 | -4/Extension | Lost 3 allies 19719 | -4/Extension | Rescued a captive Derelict 19728 | -4/Extension | Loaded intel: 1 recycling unit location 19874 | -4/Extension | Rescued A7 20068 | -4/Extension | Lost 3 allies 20074 | -4/Extension | Rescued a captive Derelict 20075 | -4/Extension | Rescued a captive Derelict 20095 | -4/Extension | Rescued a captive Derelict 20096 | -4/Extension | Rescued a captive Derelict 20105 | -4/Extension | Rescued a captive Derelict 20107 | -4/Extension | Rescued a captive Derelict 20108 | -4/Extension | Rescued a captive Derelict 20128 | -4/Extension | Discovered exit to Research (range 10) 20128 | -4/Extension | Discovered new exit (range 6) 20134 | -4/Extension | Rescued a captive Derelict 20142 | -4/Extension | Identified exit to Cetus 20204 | -4/Extension | Entered Cetus 20204 | -4/Cetus | Accompanied by 7 allies (A7) 20209 | -4/Cetus | Acquired a Cetus Manufacturing Module code from A7 20236 | -4/Cetus | Spotted Cetus Guard 20236 | -4/Cetus | Spotted Cetus Guard 20240 | -4/Cetus | Spotted Cetus Guard 20241 | -4/Cetus | Destroyed Cetus Guard 20241 | -4/Cetus | Spotted Cetus Guard 20252 | -4/Cetus | Allies destroyed Cetus Guard 20255 | -4/Cetus | Allies destroyed Cetus Guard 20262 | -4/Cetus | Allies destroyed Cetus Guard 20289 | -4/Cetus | Started Cetus Manufacturing Module 20294 | -4/Cetus | Build established: Hacker-Mutant 20301 | -4/Cetus | Escorted A7 to Cetus Mainframe 20312 | -4/Cetus | Discovered new exit (range 21) 20314 | -4/Cetus | Manufactured an Enhanced Grunt 20339 | -4/Cetus | Manufactured an Enhanced Grunt 20364 | -4/Cetus | Manufactured an Enhanced Grunt 20389 | -4/Cetus | Manufactured an Enhanced Grunt 20414 | -4/Cetus | Manufactured an Enhanced Grunt 20446 | -4/Cetus | Spotted Cetus Guard 20446 | -4/Cetus | Spotted Cetus Guard 20450 | -4/Cetus | Spotted Cetus Guard 20451 | -4/Cetus | Destroyed Cetus Guard 20451 | -4/Cetus | Spotted Cetus Guard 20453 | -4/Cetus | Allies destroyed Cetus Guard 20457 | -4/Cetus | Allies destroyed Cetus Guard 20462 | -4/Cetus | Discovered exit to Research (range 22) 20467 | -4/Cetus | Allies destroyed Cetus Guard 20484 | -4/Cetus | Met Revision 17 20513 | -4/Cetus | Identified exit to Archives 20954 | -4/Cetus | Security sweep announced 20967 | -4/Cetus | Entered Archives 20967 | -4/Archives | Accompanied by 11 allies (A7) 20972 | -4/Archives | Received a hacking code to weaken MAIN.C 20999 | -4/Archives | Discovered new exit (range 21) 21000 | -4/Archives | Discovered new exit (range 21) 21002 | -4/Archives | Discovered exit to Research (range 22) 21093 | -4/Archives | Identified exit to Hub_04(d) 21124 | -4/Archives | Entered Hub_04(d) 21124 | -4/Hub_04(d) | Accompanied by 10 allies 21163 | -4/Hub_04(d) | Spotted B-86 Titan 21175 | -4/Hub_04(d) | Targeted by mysterious "MATRIX" hacker. 21229 | -4/Hub_04(d) | Lost 3 allies 21251 | -4/Hub_04(d) | Network Hub disabled 21256 | -4/Hub_04(d) | Network Hub disabled 21282 | -4/Hub_04(d) | Entered Research 21282 | -3/Research | Evolved 2 slots: Utility x2 21343 | -3/Research | Discovered new exit (range 3) 21344 | -3/Research | Identified exit to Research 21347 | -3/Research | Lost 3 parts (1p1n1u) 21393 | -3/Research | Spotted B-86 Titan 21429 | -3/Research | Build established: Hacker-Ninja 21482 | -3/Research | Revision forces began assault on 0b10 21512 | -3/Research | Met up with Revision 17++ 21724 | -3/Research | Found Prototype Launcher 21764 | -3/Research | Discovered new exit (range 5) 21765 | -3/Research | Identified exit to Testing 21945 | -3/Research | Discovered exit to Research (range 16) 21960 | -3/Research | Loaded intel: 5 recycling unit locations 21982 | -3/Research | Research terminal network offline 22037 | -3/Research | Discovered exit to Testing (range 5) 22148 | -3/Research | Repaired Broken Cld. Gravmag System 22157 | -3/Research | Fabricated Cld. Gravmag System (x1) 22265 | -3/Research | Repaired Broken Cld. Gravmag System 22286 | -3/Research | Central database locked down 22489 | -3/Research | Spotted Striker 22489 | -3/Research | Spotted Striker 22574 | -3/Research | Identified Hellfire Missile Launcher 22691 | -3/Research | Discovered exit to Research (range 3) 22757 | -3/Research | Entered Testing 22792 | -3/Testing | Found Prototype Energy Gun 22792 | -3/Testing | Identified Hyp. EM Gauss Rifle 22815 | -3/Testing | Found Prototype Energy Cannon 22815 | -3/Testing | Identified Cld. Nova Cannon 22892 | -3/Testing | Discovered exit to Research (range 15) 22944 | -3/Testing | Found Prototype Device 22944 | -3/Testing | Identified Exp. Hardlight Generator 22963 | -3/Testing | Found Prototype Hackware 22963 | -3/Testing | Identified Ghost Barrier 22985 | -3/Testing | Entered Research 22985 | -2/Research | Evolved 2 slots: Propulsion x1, Utility x1 23237 | -2/Research | Build established: Scientist-Ninja 23373 | -2/Research | Discovered new exit (range 19) 23396 | -2/Research | Identified exit to Access 23414 | -2/Research | Loaded intel: 5 recycling unit locations 23449 | -2/Research | Discovered new exit (range 8) 23479 | -2/Research | Identified exit to Quarantine 23485 | -2/Research | Search patrols dispatched 23488 | -2/Research | Entered Quarantine 23490 | -2/Quarantine | Cryocooling Duct disabled 23505 | -2/Quarantine | Ambient heat levels rising (+20) 23505 | -2/Quarantine | Non-combat units ordered to evacuate 23571 | -2/Quarantine | Unchained authorized (BL-1NK) 23655 | -2/Quarantine | Found Alien Artifact 23662 | -2/Quarantine | Found Alien Artifact 23711 | -2/Quarantine | Cryocooling Duct disabled 23726 | -2/Quarantine | Ambient heat levels rising (+20) 23726 | -2/Quarantine | Combat units ordered to evacuate 23737 | -2/Quarantine | Found Alien Artifact 23739 | -2/Quarantine | Identified Subatomic Replicator 23739 | -2/Quarantine | Used Subatomic Replicator to create Alien Artifact 23787 | -2/Quarantine | Found Fusion Bomb Launcher 23823 | -2/Quarantine | Found Alien Launcher 23823 | -2/Quarantine | Identified Sigix Terminator 23826 | -2/Quarantine | Quarantine Guard activated 23903 | -2/Quarantine | Spotted Fortress 23926 | -2/Quarantine | Discovered new exit (range 6) 23926 | -2/Quarantine | Discovered new exit (range 6) 24010 | -2/Quarantine | Spotted Quarantine Guard 24020 | -2/Quarantine | Identified exit to Protoforge 24021 | -2/Quarantine | Entered Protoforge 24163 | -2/Protoforge | Spotted Hotshot 24166 | -2/Protoforge | Spotted Hotshot 24192 | -2/Protoforge | Superfortress began startup sequence 24201 | -2/Protoforge | Lost 3 parts (1n2u) 24231 | -2/Protoforge | Spotted AP7-3 24701 | -2/Protoforge | Build established: Hacker-Ninja 24879 | -2/Protoforge | Spotted B-90 Cyclops 24894 | -2/Protoforge | Spotted Overlord 24910 | -2/Protoforge | Spotted EXE-6 24910 | -2/Protoforge | Spotted EXE-6 24918 | -2/Protoforge | Spotted Decapitator 24918 | -2/Protoforge | Spotted Decapitator 24926 | -2/Protoforge | UFD initiated attack on Protoforge (Readiness: Maximal) 24926 | -2/Protoforge | Loaded intel: 3 recycling unit locations 24943 | -2/Protoforge | Lost 3 parts (1p1n1u) 24956 | -2/Protoforge | Found Prototype Ballistic Gun 24956 | -2/Protoforge | Identified Cep. XC Strikerail 24958 | -2/Protoforge | Found Prototype Processor 24958 | -2/Protoforge | Identified Exp. Core Analyzer 24962 | -2/Protoforge | Optimus greeted in Protoforge 24962 | -2/Protoforge | Found Cep. XC Strikerail 24967 | -2/Protoforge | Found Cep. XC Strikerail 24972 | -2/Protoforge | Found Prototype Device 24972 | -2/Protoforge | Identified Exp. Kinecellerator 24975 | -2/Protoforge | Found Cep. XC Strikerail 24982 | -2/Protoforge | Lost 6 allies 24985 | -2/Protoforge | Found Prototype Processor 24985 | -2/Protoforge | Identified Exp. Armor Integrity Analyzer 24993 | -2/Protoforge | Found Exp. Core Analyzer 25035 | -2/Protoforge | Forge Plexus network access discovered 25045 | -2/Protoforge | Identified Dimensional Node Initializer 25045 | -2/Protoforge | Initialized slip node 25079 | -2/Protoforge | Spotted AP7-3 25091 | -2/Protoforge | Found Cep. XC Strikerail 25096 | -2/Protoforge | Found Cep. XC Strikerail 25100 | -2/Protoforge | Found Cep. XC Strikerail 25103 | -2/Protoforge | Found Exp. Target Analyzer 25105 | -2/Protoforge | Lost 5 allies 25167 | -2/Protoforge | Spotted Striker 25183 | -2/Protoforge | Spotted Striker 25189 | -2/Protoforge | Spotted Executioner 25234 | -2/Protoforge | Build established: Scavenger-Scout 25252 | -2/Protoforge | Spotted Executioner 25252 | -2/Protoforge | Spotted Executioner 25253 | -2/Protoforge | Spotted Executioner 25257 | -2/Protoforge | Spotted Striker 25298 | -2/Protoforge | Lost 13 allies 25362 | -2/Protoforge | Spotted Executioner 25362 | -2/Protoforge | Spotted Striker 25363 | -2/Protoforge | Destroyed Executioner 25367 | -2/Protoforge | Destroyed Striker 25393 | -2/Protoforge | Spotted Immortal 25393 | -2/Protoforge | Spotted Immortal 25406 | -2/Protoforge | Lost 3 allies 25454 | -2/Protoforge | UFD reported confirmed Drillbomb installation 25472 | -2/Protoforge | UFD reported confirmed Drillbomb installation 25474 | -2/Protoforge | Destroyed Immortal 25496 | -2/Protoforge | Destroyed Immortal 25499 | -2/Protoforge | Spotted Executioner 25565 | -2/Protoforge | Lost 10 allies 25566 | -2/Protoforge | Spotted Executioner 25602 | -2/Protoforge | Spotted Executioner 25609 | -2/Protoforge | Spotted Executioner 25612 | -2/Protoforge | Spotted Striker 25615 | -2/Protoforge | Destroyed Striker 25619 | -2/Protoforge | Destroyed Executioner 25622 | -2/Protoforge | Spotted Striker 25626 | -2/Protoforge | Destroyed Striker 25645 | -2/Protoforge | Lost 6 allies 25698 | -2/Protoforge | Destroyed 9 combat bots 25724 | -2/Protoforge | Fired Sigix Terminator 25724 | -2/Protoforge | Additional patrols dispatched to research labs 25740 | -2/Protoforge | Spotted Striker 25740 | -2/Protoforge | Spotted Hotshot 25747 | -2/Protoforge | Spotted Decapitator 25868 | -2/Protoforge | Spotted Striker 25878 | -2/Protoforge | Destroyed Striker 25879 | -2/Protoforge | Spotted Hotshot 25888 | -2/Protoforge | Spotted Hotshot 25908 | -2/Protoforge | Destroyed Hotshot 25912 | -2/Protoforge | Spotted Striker 25913 | -2/Protoforge | Spotted Executioner 25913 | -2/Protoforge | Spotted Executioner 25934 | -2/Protoforge | Spotted Hotshot 25946 | -2/Protoforge | Spotted Executioner 25961 | -2/Protoforge | P-80 Master assimilated allied 8Q-7QC(E) 25963 | -2/Protoforge | Spotted Executioner 25974 | -2/Protoforge | Triborg destroyed during the operation 25974 | -2/Protoforge | Optimus emerged from Triborg 25990 | -2/Protoforge | Destroyed Executioner 25990 | -2/Protoforge | Optimus destroyed during the operation 25992 | -2/Protoforge | P-80 Master assimilated allied 02FAI-D 26016 | -2/Protoforge | Spotted Executioner 26017 | -2/Protoforge | Destroyed Executioner 26019 | -2/Protoforge | Spotted Executioner 26020 | -2/Protoforge | Spotted Striker 26037 | -2/Protoforge | Spotted Executioner 26038 | -2/Protoforge | Destroyed Executioner 26077 | -2/Protoforge | Lost 37 allies 26089 | -2/Protoforge | Spotted Executioner 26092 | -2/Protoforge | Spotted Executioner 26110 | -2/Protoforge | Spotted Striker 26122 | -2/Protoforge | Spotted Striker 26130 | -2/Protoforge | Spotted Striker 26173 | -2/Protoforge | Lost 9 allies 26216 | -2/Protoforge | Destroyed 7 combat bots 26243 | -2/Protoforge | Spotted Striker 26243 | -2/Protoforge | Spotted Executioner 26246 | -2/Protoforge | Destroyed Striker 26297 | -2/Protoforge | Lost 3 allies 26361 | -2/Protoforge | UFD reported confirmed Drillbomb installation 26439 | -2/Protoforge | Spotted Executioner 26439 | -2/Protoforge | Spotted Striker 26450 | -2/Protoforge | Destroyed 7 combat bots 26462 | -2/Protoforge | Destroyed Striker 26508 | -2/Protoforge | Lost 9 allies 26538 | -2/Protoforge | Spotted Executioner 26585 | -2/Protoforge | Lost 6 allies 26708 | -2/Protoforge | Spotted Striker 26710 | -2/Protoforge | Spotted Striker 26716 | -2/Protoforge | UFD reported confirmed Drillbomb installation 26722 | -2/Protoforge | Destroyed Striker 26799 | -2/Protoforge | Lost 3 allies 26799 | -2/Protoforge | UFD reported confirmed Drillbomb installation 26865 | -2/Protoforge | Spotted Executioner 26880 | -2/Protoforge | Found Prototype Device 26880 | -2/Protoforge | Identified Adv. Kinecellerator 26928 | -2/Protoforge | Lost 4 allies 26940 | -2/Protoforge | Spotted Striker 26941 | -2/Protoforge | Spotted Executioner 26953 | -2/Protoforge | Destroyed Striker 26968 | -2/Protoforge | Spotted Striker 26975 | -2/Protoforge | Spotted Executioner 27009 | -2/Protoforge | Lost 4 allies 27061 | -2/Protoforge | Spotted Executioner 27133 | -2/Protoforge | Spotted Immortal 27135 | -2/Protoforge | Spotted Hotshot 27140 | -2/Protoforge | Spotted Striker 27230 | -2/Protoforge | Spotted Executioner 27236 | -2/Protoforge | Spotted Executioner 27266 | -2/Protoforge | Spotted Executioner 27310 | -2/Protoforge | Spotted Executioner 27317 | -2/Protoforge | Spotted Executioner 27320 | -2/Protoforge | Destroyed Executioner 27325 | -2/Protoforge | Destroyed Hotshot 27335 | -2/Protoforge | Spotted Executioner 27344 | -2/Protoforge | Spotted Executioner 27354 | -2/Protoforge | Lost 21 allies 27473 | -2/Protoforge | System corruption reached 10% 27494 | -2/Protoforge | Found UFD Drillbomb 27511 | -2/Protoforge | Installed UFD Drillbomb at designated target 27511 | -2/Protoforge | UFD reported confirmed Drillbomb installation 27964 | -2/Protoforge | Spotted Striker 27971 | -2/Protoforge | Spotted Striker 28016 | -2/Protoforge | UFD reported confirmed Drillbomb installation 28098 | -2/Protoforge | Spotted Hotshot 28101 | -2/Protoforge | Destroyed Hotshot 28133 | -2/Protoforge | Found UFD Drillbomb 28172 | -2/Protoforge | Installed UFD Drillbomb at designated target 28172 | -2/Protoforge | UFD reported confirmed Drillbomb installation 28215 | -2/Protoforge | Spotted Striker 28222 | -2/Protoforge | Spotted Executioner 28254 | -2/Protoforge | Lost 4 allies 28313 | -2/Protoforge | Lost 4 allies 28327 | -2/Protoforge | Spotted Executioner 28393 | -2/Protoforge | Lost 5 allies 28408 | -2/Protoforge | Spotted Executioner 28412 | -2/Protoforge | Spotted Executioner 28419 | -2/Protoforge | Spotted Executioner 28420 | -2/Protoforge | Spotted Striker 28424 | -2/Protoforge | Spotted Striker 28426 | -2/Protoforge | Destroyed Striker 28439 | -2/Protoforge | P-80 Master assimilated allied TK-370(E) 28457 | -2/Protoforge | Found UFD Drillbomb 28484 | -2/Protoforge | Lost 7 allies 28487 | -2/Protoforge | Spotted Executioner 28528 | -2/Protoforge | Spotted Striker 28528 | -2/Protoforge | Spotted Executioner 28648 | -2/Protoforge | Build established: Scavenger-Mutant 28704 | -2/Protoforge | Spotted Striker 28706 | -2/Protoforge | Spotted Executioner 28723 | -2/Protoforge | Destroyed Executioner 28758 | -2/Protoforge | Lost 8 allies 28761 | -2/Protoforge | Found UFD Drillbomb 28768 | -2/Protoforge | Destroyed 10 combat bots 28780 | -2/Protoforge | Installed UFD Drillbomb at designated target 28780 | -2/Protoforge | UFD reported confirmed Drillbomb installation 28831 | -2/Protoforge | Spotted Hotshot 28831 | -2/Protoforge | Spotted Hotshot 28836 | -2/Protoforge | Spotted Striker 28886 | -2/Protoforge | Spotted Immortal 28886 | -2/Protoforge | Spotted Immortal 28964 | -2/Protoforge | Destroyed Immortal 28972 | -2/Protoforge | Destroyed Immortal 28982 | -2/Protoforge | Spotted Executioner 29176 | -2/Protoforge | Spotted Executioner 29176 | -2/Protoforge | Spotted Striker 29176 | -2/Protoforge | Spotted Executioner 29177 | -2/Protoforge | Core integrity fell below 50% 29197 | -2/Protoforge | Destroyed Striker 29213 | -2/Protoforge | Spotted Executioner 29234 | -2/Protoforge | Installed UFD Drillbomb at designated target 29234 | -2/Protoforge | UFD reported confirmed Drillbomb installation 29235 | -2/Protoforge | UFD began Drillbomb countdown 29235 | -2/Protoforge | Identified Supercharged TR 29235 | -2/Protoforge | Warped through subspace to slip node 29283 | -2/Protoforge | Spotted Executioner 29283 | -2/Protoforge | Spotted Executioner 29296 | -2/Protoforge | Spotted Executioner 29317 | -2/Protoforge | Destroyed Executioner 29322 | -2/Protoforge | Destroyed Executioner 29326 | -2/Protoforge | Destroyed Executioner 29335 | *** | Defending 0bPrime! Last Messages --------------- short on matter and it was a natural reflex. 29329_ 0bP_NET: Oh yeah, T-6 by the way. 29329_ N-04 Retriever suffers critical hit (Destroy). 29329_ Destroyed Linear Gravjet. 29329_ N-04 Retriever destroyed. 29330_ 0bP_NET: LU-1G1, we know you're out there, digging away, so no moment of silence needed for you. 29331_ 0bP_NET: DD-05H though, you were a good one, we'll never forget the way you smashed your way west and just never stopped smashing. 29331_ N-04 Retriever inserts Ovr. Railgun into Forge Plexus. 29332_ 0bP_NET: Well my eulogizing is soon to be interrupted by scenes of half of Protoforge collapsing in on itself. Be careful out there. 29332_ N-04 Retriever inserts Lgt. Antimatter Reactor into Forge Plexus. 29333_ 0bP_NET: T-2! 29333_ N-04 Retriever inserts Helical Railgun into Forge Plexus. 29333_ Acquired 61 matter. 29333_ N-04 Retriever inserts Mak. Coolant Network into Forge Plexus. 29334_ 0bP_NET: And that's a wrap. 29334_ N-04 Retriever inserts Lgt. Quantum Reactor into Forge Plexus. [Achievement: Robotopia] Map ----- +----------------------------------------------------+ | """""""""""""" %%|!*%==!=!!!= ###"F ""###??????? | | """""""""""""""%%%%%%%*%%[!!= #?#"""""#????????? | | """"""""""""""" %!%%%!|%[!=! #?#"""""#????????? | | """""""""""""""% =!!%=%[%[!!!!! #?#######????????? | | """"""""""""""""% %=%*=!%%[*=[=*#????????????????? | | """"""""""""""""%%=%%%[!=![!=[=!#????????????????? | | """"""""""""""""%%%/%%%%%*!=!*%=#??#??#??????????? | | """"""""""""""""n*%=/%!%!/=![!=!#????????????????? | | """"""""""""""""%%%!!%%![%[%!![!#????????????????? | | """"""""""""""""%%%%=!*|%*[!=!%!##???????????????? | | """""""""""""""" %!%%%!![!***!==[#???????????????? | | """"""""""""""""% =%=%%%! %%%!= #???????????????? | | """"""""""""""""%%%!*/===%[%[=! ##???????????????? | | """""""""""""""%%%/=*%%%*!%[==/ #????????????????? | | """""""""""""""%"%%%%[%[!=!%*/% #????????????????? | | """""""""""""""%%%[!%]=%%[ =%!*=#????????????????? | | """""""""""""" % %*!!%%%=% =*[!#????????????????? | | """"""""""""" %*!=!%! " %!s= !!#????????????????? | | """""""""""" %%%%=!!*%%%=%%|%![*#????????????????? | | """""""""""%% %%%!!]! [=/*%[=%!#????????????????? | | """""""""" % =!%[!= !*s**[!#????????????????? | | """""""""%%" %%=! % " "= %%=%%=#????????????????? | | """""" %% ""!%!!! %" %|%!!!!!=#????????????????? | | % ""% %*[* % % %![%[!#????????????????? | | % % !!! %" *!EE[[#????????????????? | | !! %% % =!! % "@!E!%[%###??????????????? | | !%[ / "A!!%E*[%##?????????????? | | [ """" !!=%=!##?????????????? | | %!!%!#??????????????? | | " " ""= %[*!#??????????????? | | "" s % =%[!##?????????????? | | SS% "" "=s "=%<